Cogmind - Beta 17 @@@ ROGUE MODE // 2026.06.23 @ 21:02:39 Player: Artackni Result: Escaped! Performance ------------- Evolutions (9) 4500 Regions Visited (30) 6000 Robots Destroyed (543) 2715 Value Destroyed (31640) 31640 Prototype IDs (53) 1060 Alien Tech Used (1) 200 Bonus (42160) 42160 TOTAL SCORE: 88275 Bonus ------- High Alert Combat Kills 8333 Follower Combat Kills 6850 Prayed to X0-1V1 5000 Major X0-1V1 Interference 11550 Entered Garrisons 2200 Used RIF Installer 6000 Win 3000 Friendly Fire -773 Cogmind --------- Core Integrity 1328/1450 Matter 204/300 Energy 672/700 System Corruption 3% Temperature Cool (-186) Movement Treading (156) Location To Epsilon Eridani Parts ------- > --- POWER (2) -------- Vortex Chain Reactor > --- PROPULSION (8) --- Biometal Heavy Treads Enhanced Armored Heavy Treads High-density Centrium Heavy Treads High-density Centrium Heavy Treads > --- UTILITY (11) ----- Advanced Cryofiber Web Advanced Heat Sink Huge Storage Unit SHELL Armor (fused) AEGIS Remote Shield Relay Coupler [NC] (63) Relay Coupler [Grunt] (27) Relay Coupler [Hunter] (34) X0-1V1's Piety Tracker > --- WEAPON (4) ------- Enhanced Nova Cannon Compact Mass Driver Enhanced Hardcell Cannon Enhanced Hardcell Cannon > --- INVENTORY (25) --- Graviton Reactor Medium Treads Medium Treads Advanced Medium Treads Advanced Heat Sink Improved Coolant Injector Advanced Energy Well (500) Advanced Matter Compressor (400) Faulty Experimental Melee Analysis Suite Faulty Experimental Melee Analysis Suite Faulty Experimental Core Analyzer Quantum Capacitor Advanced Weapon Cycler Advanced Cloaking Device Advanced Thermal Shield Advanced Force Field Advanced Remote Force Field Relay Coupler [Proto] (21) Enhanced Hardcell Cannon Enhanced Hardcell Cannon Compact Linear Accelerator Advanced Micro-nuke Launcher Advanced Datajack Peak State ------------ > --- POWER ------------ Vortex Chain Reactor > --- PROPULSION ------- Biometal Heavy Treads Enhanced Armored Heavy Treads High-density Centrium Heavy Treads High-density Centrium Heavy Treads > --- UTILITY ---------- Advanced Cryofiber Web Advanced Heat Sink Huge Storage Unit SHELL Armor AEGIS Remote Shield Relay Coupler [NC] Relay Coupler [Grunt] Relay Coupler [Hunter] X0-1V1's Piety Tracker > --- WEAPON ----------- Enhanced Nova Cannon Compact Mass Driver Enhanced Hardcell Cannon Compact Linear Accelerator > --- INVENTORY -------- Graviton Reactor Medium Treads Medium Treads Advanced Medium Treads Advanced Heat Sink Improved Coolant Injector Advanced Energy Well Advanced Matter Compressor Experimental Melee Analysis Suite Experimental Melee Analysis Suite Experimental Core Analyzer Quantum Capacitor Advanced Weapon Cycler Advanced Cloaking Device Advanced Thermal Shield Advanced Force Field Advanced Remote Force Field Relay Coupler [Proto] Enhanced Hardcell Cannon Enhanced Hardcell Cannon Enhanced Hardcell Cannon Advanced Micro-nuke Launcher Advanced Datajack Advanced Remote Datajack [Rating: 229] Favorites ----------- Power Hybrid Fission Core Engine Heavy Ion Engine Power Core Hybrid Fission Core Reactor Compact Particle Reactor Propulsion Improved Heavy Treads Treads Improved Heavy Treads Leg Biometal Leg Wheel Armored Huge Wheel Utility Huge Storage Unit Device X0-1V1's Piety Tracker Storage Huge Storage Unit Processor Core Analyzer Hackware Relay Coupler [Grunt] Protection SHELL Armor Weapon Advanced Remote Datajack Energy Gun Quantum Rifle Energy Cannon Enhanced Nova Cannon Ballistic Gun Minigun Ballistic Cannon Enhanced Hardcell Cannon Launcher Heavy Rocket Launcher Special Weapon Advanced Remote Datajack Impact Weapon Power Maul Slashing Weapon Scimitar of Distortion Build | -11 -10 -9 -8 -8 -8 -8 -7 -7 -7 -7 -7 -6 -6 -6 -6 -5 -5 -5 -5 -4 -4 -4 -4 -3 -3 -3 -2 -1 -1 -1 ------- Run | Yrd Mat Mat Mat Gar Mat Gar Fac Gar Fac Low Low Fac Gar Fac Gar Fac Gar Fac Gar Fac Gar Fac Gar Res Tes Gar Res Acc Gar Acc Slots Evolved 17 | . . 2 2 . . . 2 . . . . 2 . . . 2 . . . 2 . . . 2 . . 1 2 . . Power . | . . . . . . . . . . . . . . . . . . . . . . . . . . . . . . . Propulsion 6 | . . . . . . . 1 . . . . . . . . 2 . . . . . . . 2 . . 1 . . . Utility 10 | . . 1 2 . . . 1 . . . . 2 . . . . . . . 2 . . . . . . . 2 . . Weapon 1 | . . 1 . . . . . . . . . . . . . . . . . . . . . . . . . . . . Parts Attached 328 | 7 8 19 . 11 18 3 30 21 3 2 . 5 12 1 9 2 4 2 . 1 32 29 10 31 30 8 20 2 4 4 Power 26 | 1 1 1 . 1 1 . 1 2 1 . . . 1 1 . . . . . . 4 2 2 3 2 . 1 . . 1 Engine 7 | 1 1 1 . 1 1 . 1 . . . . . 1 . . . . . . . . . . . . . . . . . Core 6 | . . . . . . . . 2 1 . . . . . . . . . . . 1 . 2 . . . . . . . Reactor 13 | . . . . . . . . . . . . . . 1 . . . . . . 3 2 . 3 2 . 1 . . 1 Propulsion 56 | 2 3 2 . 1 2 1 4 5 . . . . 2 . 1 1 2 . . . 2 5 1 8 4 3 7 . . . Treads 22 | . . . . . . . 1 2 . . . . 2 . . 1 2 . . . 2 5 1 2 . . 4 . . . Leg 16 | . . . . . . . . . . . . . . . . . . . . . . . . 6 4 3 3 . . . Wheel 18 | 2 3 2 . 1 2 1 3 3 . . . . . . 1 . . . . . . . . . . . . . . . Hover . | . . . . . . . . . . . . . . . . . . . . . . . . . . . . . . . Flight . | . . . . . . . . . . . . . . . . . . . . . . . . . . . . . . . Utility 132 | 2 3 2 . 5 5 . 11 7 1 1 . 5 3 . 6 . 1 2 . . 17 16 5 13 12 4 6 2 2 1 Device 79 | 1 1 2 . 5 5 . 5 4 1 . . 4 1 . 1 . . 1 . . 8 13 3 8 8 3 4 1 . . Storage 7 | 1 2 . . . . . . . . . . . . . . . . . . . 1 2 . . 1 . . . . . Processor 6 | . . . . . . . 1 . . 1 . . . . . . . . . . . . . 2 . . 2 . . . Hackware 32 | . . . . . . . 2 3 . . . 1 1 . 5 . 1 1 . . 7 1 2 2 1 1 . 1 2 1 Protection 8 | . . . . . . . 3 . . . . . 1 . . . . . . . 1 . . 1 2 . . . . . Artifact . | . . . . . . . . . . . . . . . . . . . . . . . . . . . . . . . Weapon 114 | 2 1 14 . 4 10 2 14 7 1 1 . . 6 . 2 1 1 . . 1 9 6 2 7 12 1 6 . 2 2 Energy Gun 23 | 1 1 7 . 2 3 . 4 1 . 1 . . 1 . . . 1 . . . 1 . . . . . . . . . Energy Cannon 14 | . . 2 . . . . . . . . . . . . . . . . . . 1 1 1 4 2 . 1 . 1 1 Ballistic Gun 22 | 1 . 5 . 1 5 . 3 1 . . . . 1 . . . . . . . . . 1 1 3 . . . . . Ballistic Cannon 34 | . . . . 1 1 1 3 1 . . . . 3 . 1 1 . . . 1 5 3 . 1 5 . 5 . 1 1 Launcher 5 | . . . . . 1 . 1 . . . . . . . . . . . . . 1 . . 1 . 1 . . . . Special Weapon 9 | . . . . . . . 1 2 . . . . 1 . 1 . . . . . 1 1 . . 2 . . . . . Impact Weapon 1 | . . . . . . 1 . . . . . . . . . . . . . . . . . . . . . . . . Slashing Weapon 6 | . . . . . . . 2 2 1 . . . . . . . . . . . . 1 . . . . . . . . Piercing Weapon . | . . . . . . . . . . . . . . . . . . . . . . . . . . . . . . . Special Melee Weapon . | . . . . . . . . . . . . . . . . . . . . . . . . . . . . . . . Unidentified Prototypes 45 | . 1 2 . 1 1 . 3 1 2 . . . 1 . . 1 . . . . . 9 . 7 11 . 4 . . 1 Corrupted Parts 1 | . . . . . . . . . . . . . . . . . . . . . . . . . 1 . . . . . System Corruption 12 | . . . . . . . . . . . . . . . . . . . . . . . . . 12 . . . . . Parts Lost 101 | . 2 1 . 6 6 7 14 8 1 . . 2 8 . . . . . . 1 7 22 3 3 4 2 4 . . . Power 12 | . 1 . . . 1 . 2 . 1 . . . 1 . . . . . . . 1 2 . 1 1 . 1 . . . Propulsion 19 | . . . . 2 1 1 2 3 . . . . 1 . . . . . . . . 3 1 . 1 2 2 . . . Utility 37 | . . . . 2 1 1 4 2 . . . 2 4 . . . . . . . 4 11 2 2 1 . 1 . . . Weapon 33 | . 1 1 . 2 3 5 6 3 . . . . 2 . . . . . . 1 2 6 . . 1 . . . . . Highest Loss Streak 6 | . 1 1 . 3 1 5 4 3 1 . . 2 3 . . . . . . 1 4 6 1 1 3 1 1 . . . To Critical Strikes 2 | . . . . . . . . . . . . . . . . . . . . . . 1 1 . . . . . . . Average Backups 20 | 2 16 24 25 23 22 19 20 20 19 19 20 18 19 22 20 18 19 19 18 18 18 18 17 23 22 23 22 21 22 23 Power . | . . 2 3 2 1 1 . . . . . . . . . . . . . . . . . . . . . 2 2 1 Propulsion 3 | 1 7 6 3 2 1 1 2 1 3 3 3 3 3 4 4 4 3 4 5 5 4 4 1 2 3 3 1 1 1 2 Utility 10 | . 6 9 11 11 13 13 14 13 10 10 11 9 8 9 8 6 7 7 6 6 8 9 12 17 13 12 12 12 12 13 Weapon 4 | . 1 5 8 7 5 2 2 5 5 5 5 5 6 6 5 7 7 6 5 5 4 3 1 2 4 6 6 5 5 4 Tool/Special . | . . . . . . . . . . . . . . . . . . . . . . . . . . . . . . . Unused Backups 107 | . . 16 . 7 5 . 8 12 1 2 . . 3 . 9 . 8 3 2 1 4 1 . 6 3 1 2 . 1 12 Power 4 | . . 1 . . 1 . . . . . . . . . . . 1 . . . . . . . . . . . . 1 Propulsion 24 | . . 8 . . . . . . . 2 . . . . 1 . 5 . . . . 1 . 2 1 . . . 1 3 Utility 53 | . . . . 6 3 . 7 12 . . . . 1 . 4 . 2 1 2 1 3 . . 2 1 . 2 . . 6 Weapon 21 | . . 7 . 1 1 . . . . . . . 2 . 3 . . 2 . . 1 . . 1 1 1 . . . 1 Tool/Special 5 | . . . . . . . 1 . 1 . . . . . 1 . . . . . . . . 1 . . . . . 1 Average Slot Usage (%) 82 | . 100 99 83 96 95 82 82 81 78 70 64 70 74 81 81 77 76 77 77 72 79 76 81 85 85 80 84 73 75 71 Engine 2 | . 14 10 8 8 7 8 5 . . . . . 2 . . . . . . . . . . . . . . . . . Core 2 | . . . . . . . . 6 7 6 6 6 6 6 6 5 5 5 5 5 3 . 8 1 . . . . . . Reactor 1 | . . . . . . . . . . . . . . . . . . . . . 3 3 . 7 7 8 6 8 8 5 Treads 6 | . . . . . . . 1 7 14 12 12 8 6 6 2 5 7 11 11 10 10 9 10 12 . . 1 16 16 16 Leg 2 | . . . . . . . . . . . . . . . . . . . . . . . . 3 26 24 28 . . . Wheel 5 | . 28 21 16 14 11 7 10 6 . . . . . . 3 5 3 . . . . . . . . . . . . . Device 18 | . 14 20 16 31 30 30 22 20 21 14 6 18 20 18 14 11 11 10 11 10 14 18 26 21 15 15 15 18 18 16 Storage 6 | . 14 10 8 8 7 8 7 7 7 6 6 6 6 6 6 5 5 5 5 5 5 5 7 4 4 4 3 4 4 4 Processor 2 | . . . . . . . 1 . . 3 6 6 6 6 6 5 5 5 5 5 5 1 . . . . . . . . Hackware 11 | . . . . . . . 5 13 14 12 12 11 13 18 22 22 22 22 22 20 20 19 13 13 9 5 3 6 9 10 Protection 1 | . . . . . . . 3 . . . . . 1 . . . . . . 2 1 . 1 1 3 4 3 4 4 4 Energy Gun 5 | . 23 22 16 15 17 3 5 3 . 1 4 . . 6 6 4 5 5 5 5 . . . . . . . . . . Energy Cannon 1 | . . 2 . . . . . . . . . . . . . . . . . . 1 . 9 9 5 . 1 4 4 2 Ballistic Gun 2 | . 4 10 16 15 15 5 1 1 . . . . . 6 . . . . . . . . 4 1 . . . . . . Ballistic Cannon 6 | . . . . . 3 12 12 3 7 6 6 6 6 6 6 5 5 5 5 5 9 13 . 3 8 16 14 8 10 11 Special Weapon 2 | . . . . . . . . 6 2 1 . . . . 5 5 5 5 5 5 5 3 . 1 2 . . 2 . 1 Peak Build Rating 229 | 7 21 39 39 54 65 56 67 93 97 95 90 97 106 113 107 110 117 118 115 120 145 161 144 181 197 206 219 226 226 229 Average Rating 107 | 5 8 31 39 46 55 54 61 73 95 93 90 89 89 106 100 109 112 116 114 117 127 140 132 163 180 195 205 222 223 224 On Entrance 106 | . 7 21 39 39 54 56 55 64 93 95 90 90 90 106 106 96 109 117 114 115 120 145 105 134 175 197 198 219 218 223 Avg Prop Armor Cover (%) 10 | . . . . . . . 10 12 . . . . . . . 13 12 . . . . 11 . 7 . . 1 . . . Naked Turns . | . . . . . . . . . . . . . . . . . . . . . . . . . . . . . . . Heaviest Build 225 | 11 88 102 100 108 115 120 140 118 126 126 123 129 149 145 145 135 135 135 135 142 169 151 159 179 191 193 225 204 211 208 Greatest Support 335 | 20 32 32 24 28 28 28 44 150 150 150 150 150 75 75 75 28 150 150 150 150 150 150 135 240 202 199 335 335 335 335 Greatest Overweight (x) 8 | . 4 4 4 8 4 4 4 3 . . . 1 1 1 5 4 4 . . . 1 2 1 2 1 1 1 . . . Average Overweight (x) 1 | . 1 3 4 4 3 3 2 1 . . . . 1 1 3 4 2 . . . . . . . . . . . . . Largest Inventory Capacity 25 | 8 25 25 25 25 25 25 25 25 25 25 25 25 25 25 25 25 25 25 25 25 25 25 25 25 25 25 25 25 25 25 Average Capacity 24 | 7 22 25 25 25 25 25 25 25 25 25 25 25 25 25 25 25 25 25 25 25 25 25 25 25 25 25 25 25 25 25 Most Carried 25 | 6 23 25 25 25 25 25 25 25 25 25 25 25 25 25 25 24 25 25 25 25 25 25 23 25 25 25 25 24 25 25 Average Carried 23 | 2 16 24 25 23 24 21 23 23 24 24 25 24 23 25 24 23 24 24 24 24 23 23 18 24 24 24 23 23 24 24 Final Capacity 25 | 8 25 25 25 25 25 25 25 25 25 25 25 25 25 25 25 25 25 25 25 25 25 25 25 25 25 25 25 25 25 25 Final Carried 25 | 6 23 25 25 25 25 22 25 25 25 25 25 25 25 25 25 23 25 24 25 25 25 17 23 25 25 22 24 24 25 24 Transmogrified Parts 2 | . . . . . . . . . . . . . . . . . . . . . . . 2 . . . . . . . Integrity Recovered 4 | . . . . . . . . . . . . . . . . . . . . . . . 4 . . . . . . . Class Distribution -------------------- 42% | Botlord-Tank 9% | Gunner 8% | Bothacker-Mutant 8% | Bothacker-Tank 8% | Mutant 6% | Botlord-Gunner 4% | Tank 4% | Bothacker-Gunner Dominant Class ---------------- Mutant | -10/Materials Gunner | -9/Materials Gunner | -8/Materials Gunner | -8/Garrison Tank | -8/Materials Bothacker-Gunner | -8/Garrison Bothacker-Gunner | -7/Factory Bothacker-Mutant | -7/Garrison Bothacker-Mutant | -7/Factory Bothacker-Tank | -7/Lower Caves Bothacker-Tank | -7/Lower Caves Tank | -6/Factory Bothacker-Mutant | -6/Garrison Botlord-Tank | -6/Factory Botlord-Gunner | -6/Garrison Botlord-Tank | -5/Factory Botlord-Tank | -5/Garrison Botlord-Tank | -5/Factory Botlord-Tank | -5/Garrison Botlord-Tank | -4/Factory Botlord-Tank | -4/Garrison Botlord-Tank | -4/Factory Botlord-Tank | -4/Garrison Botlord-Tank | -3/Research Botlord-Tank | -3/Testing Botlord-Tank | -3/Garrison Botlord-Executioner | -2/Research Botlord-Tank | -1/Access Botlord-Tank | -1/Garrison Botlord-Tank | -1/Access Resources | -11 -10 -9 -8 -8 -8 -8 -7 -7 -7 -7 -7 -6 -6 -6 -6 -5 -5 -5 -5 -4 -4 -4 -4 -3 -3 -3 -2 -1 -1 -1 ----------- Run | Yrd Mat Mat Mat Gar Mat Gar Fac Gar Fac Low Low Fac Gar Fac Gar Fac Gar Fac Gar Fac Gar Fac Gar Res Tes Gar Res Acc Gar Acc Matter Collected 25487 | 280 123 241 . 849 1249 343 1669 751 472 586 61 474 972 157 1365 49 1171 109 583 80 1576 3162 585 831 1967 817 1680 421 1427 1437 Remotely . | . . . . . . . . . . . . . . . . . . . . . . . . . . . . . . . Salvage Created 21467 | 182 652 670 . 900 1940 401 1939 1266 389 182 31 326 813 55 526 . 1052 186 464 . 686 2201 498 1203 1347 436 1242 274 600 1006 Parts 963 | 15 23 44 . 45 111 27 109 73 15 5 3 10 25 4 27 . 35 16 29 . 35 59 22 39 63 18 49 5 20 37 Haulers Intercepted 12 | . 2 1 . . 6 . 1 . . . . . . . . . . . . . . 1 . . . . . . . 1 Recyclers Shooed 13 | . . 1 . . 1 . . . 1 . . . . . . . . . . . . 4 . 3 1 . 1 . . 1 Parts Field Recycled . | . . . . . . . . . . . . . . . . . . . . . . . . . . . . . . . Retrieved Matter . | . . . . . . . . . . . . . . . . . . . . . . . . . . . . . . . Parts Self-Destructed 8 | . . . . . . . . . . 5 3 . . . . . . . . . . . . . . . . . . . Prevented . | . . . . . . . . . . . . . . . . . . . . . . . . . . . . . . . Parts Restored . | . . . . . . . . . . . . . . . . . . . . . . . . . . . . . . . Kills | -11 -10 -9 -8 -8 -8 -8 -7 -7 -7 -7 -7 -6 -6 -6 -6 -5 -5 -5 -5 -4 -4 -4 -4 -3 -3 -3 -2 -1 -1 -1 ------- Run | Yrd Mat Mat Mat Gar Mat Gar Fac Gar Fac Low Low Fac Gar Fac Gar Fac Gar Fac Gar Fac Gar Fac Gar Res Tes Gar Res Acc Gar Acc Combat Hostiles Destroyed 444 | . 8 24 . 17 34 17 40 13 7 7 3 6 24 1 24 . 8 3 10 . 21 43 7 17 21 26 28 4 14 17 Melee 14 | . . . . . . . 4 10 . . . . . . . . . . . . . . . . . . . . . . Guns 93 | . 8 20 . 16 28 5 11 3 . . . . . . . . . . . . . . . 2 . . . . . . Cannons 252 | . . . . 1 2 10 21 . 7 4 1 3 20 1 24 . 8 3 10 . 9 35 4 11 19 12 20 4 10 13 AOE 71 | . . 4 . . 4 2 4 . . 3 2 3 4 . . . . . . . 10 8 1 . . 14 5 . 3 4 Classes Destroyed 24 | 2 3 4 . 3 5 2 1 2 . . . . . . 1 . . . . . . 1 . . . . . . . . Worker 12 | . . . . . 2 . 6 . . . . . . . . . . . . . . 2 . . . . . . . 2 Builder 19 | . . 1 . . 2 . 8 . . . . . . . . . . . . . . 4 . 1 1 . 1 . . 1 Tunneler 10 | 5 1 . . . 2 . . . . . . . . . . . . . . . . 1 . . . . . . . 1 Hauler 12 | . 2 1 . . 6 . 1 . . . . . . . . . . . . . . 1 . . . . . . . 1 Recycler 21 | 1 2 . . . 1 . 4 . 3 . . 2 . . . . . . . . . 4 . . . . 3 . . 1 Mechanic 4 | . . 1 . . 1 . 1 . . . . . . . . . . . . . . 1 . . . . . . . . Operator 3 | . . . . . 1 . 1 . . . . 1 . . . . . . . . . . . . . . . . . . Drone 1 | . . . . . . . . 1 . . . . . . . . . . . . . . . . . . . . . . Watcher 9 | . 1 2 . . 2 . . . . . . . . . . . 1 . . . 2 . . 1 . . . . . . Swarmer 94 | . . 15 . . 5 7 7 . . 3 3 3 . . 13 . . 1 . . 9 1 1 . . 9 10 . 1 6 Cutter 12 | . . . . . . . . 3 . . . . . . . . . . . . . . . . . 4 . . 5 . Saboteur 2 | . . . . . . . . . . . . . . . . . . . . . . 1 . . . . 1 . . . Grunt 153 | . 8 6 . 10 18 5 25 1 1 1 . 1 10 . 2 . 3 . 2 . 6 13 1 5 8 6 9 4 3 5 Brawler 13 | . . . . 1 1 . 1 . . . . . 1 . 1 . 1 . . . . 5 1 . 1 . . . . . Duelist 15 | . . . . 1 . . 1 . . 1 . 1 2 . 1 . . . . . . 7 . . . 1 . . . . Protector 1 | . . . . . 1 . . . . . . . . . . . . . . . . . . . . . . . . . Sentry 56 | . . 3 . 5 7 1 6 3 3 1 . . 6 1 2 . 2 . 1 . 2 . 1 1 1 2 3 . 4 1 Demolisher 1 | . . . . . . 1 . . . . . . . . . . . . . . . . . . . . . . . . Specialist 2 | . . . . . 2 . . . . . . . . . . . . . . . . . . . . . . . . . Hunter 27 | . . . . . . . 1 1 . . . . 1 . 1 . . . 3 . 1 8 . 2 5 1 2 . . 1 Programmer 53 | . . . . . . 3 2 4 3 . . 1 . . 4 . 1 2 3 . 3 4 3 8 5 1 2 . 1 3 Heavy 2 | . . . . . 1 . . . . . . . . . . . . 1 . . . . . . . . . . . . Behemoth 10 | . . . . 1 . . . . . 1 . . . . . . 1 . 1 . 1 . . 1 . 2 1 . . 1 Striker 1 | . . . . . . . . . . . . . . . 1 . . . . . . . . . . . . . . . Protovariant L 1 | . . . . . . . . . . . . . . . . . . . . . . . . . 1 . . . . . Thug 10 | . . . . . . . . . . . . . 5 . . . . . . . . 5 . . . . . . . . Best Kill Streak 18 | 5 2 8 . 5 7 7 5 2 2 3 3 4 5 1 7 . 4 3 4 . 9 7 2 3 4 18 5 4 9 5 Combat Bots Only 18 | . 2 7 . 5 4 7 5 2 2 3 3 3 5 1 7 . 4 3 4 . 9 6 2 3 4 18 4 4 9 4 Max Kills in Single Turn 6 | 1 1 5 . 1 2 2 3 1 1 2 2 2 4 1 1 . 1 1 1 . 6 4 1 2 2 6 3 1 2 2 Gunslinging . | . . . . . . . . . . . . . . . . . . . . . . . . . . . . . . . Exploded 6 | . . 4 . . 2 2 2 . . 2 2 2 4 . . . . . . . 6 3 1 . . 6 3 . 2 2 Melee 1 | . . . . . . . 1 1 . . . . . . . . . . . . . . . . . . . . . . Uniques/NPCs Destroyed . | . . . . . . . . . . . . . . . . . . . . . . . . . . . . . . . Combat | -11 -10 -9 -8 -8 -8 -8 -7 -7 -7 -7 -7 -6 -6 -6 -6 -5 -5 -5 -5 -4 -4 -4 -4 -3 -3 -3 -2 -1 -1 -1 -------- Run | Yrd Mat Mat Mat Gar Mat Gar Fac Gar Fac Low Low Fac Gar Fac Gar Fac Gar Fac Gar Fac Gar Fac Gar Res Tes Gar Res Acc Gar Acc Hostile Shots Fired 3332 | . 43 61 . 62 130 98 393 136 42 35 10 17 237 21 115 . 19 14 60 6 146 402 68 151 324 160 223 160 82 117 Missed 1029 | . 14 22 . 15 39 26 118 23 17 11 6 4 87 9 40 . 6 4 15 2 40 145 24 44 101 52 57 48 21 39 Deflected 2 | . . . . . . . . . . . . . . . . . . . . . . . . . 2 . . . . . Hits 2303 | . 29 39 . 47 91 72 275 113 25 24 4 13 150 12 75 . 13 10 45 4 106 257 44 107 223 108 166 112 61 78 Melee 90 | . . . . 4 . . . 38 . 2 . . 1 . . . . . . . . 21 . . 1 6 . 7 8 2 Projectile 2213 | . 29 39 . 43 91 72 275 75 25 22 4 13 149 12 75 . 13 10 45 4 106 236 44 107 222 102 166 105 53 76 AOE 12 | . . . . 2 . 4 . . . . . . . . 1 . . . . . . . . . . . . . 5 . Critical Strikes 114 | . . 1 . 4 4 3 5 10 . 1 . . 4 . 2 . . . 2 2 2 15 4 6 9 9 11 9 6 5 Part Disruptions 7 | . . . . . . 1 . . . . . . . . . . . . . . . . . 1 2 1 2 . . . Damage Taken 33693 | . 345 505 . 837 1277 1057 3028 1168 176 648 59 220 1438 77 683 9 149 195 480 39 2193 4711 876 1486 3477 1610 2776 1691 1486 997 Core 3112 | . 71 38 . 173 108 215 542 196 11 . 14 12 227 16 77 . 30 6 28 10 218 380 167 157 154 51 89 65 47 10 Absorbed by Shields 8348 | . . . . 17 144 . 140 62 44 . . 34 225 81 628 9 143 205 501 43 323 . 70 970 932 1185 1325 135 177 955 Reduced by Siege Mode 22 | . . . . . . . . . . . . . . . . . 6 . . . . 16 . . . . . . . . Ignored by Resistances 1142 | . . . . . . . . . . . . . 92 . . . . . . . . 537 . . . . . 308 205 . Regen/Repaired (Parts) 5512 | . . . . . . . . . . . . . . . . . . . . . . . . 150 1255 1269 1203 307 916 412 Core Remaining (%) 73 | 100 36 100 . . . 65 . . . . 35 . . . 88 . . . 92 . . . 42 . . 68 93 . . 91 Volleys Fired 1568 | 10 67 41 . 49 82 38 104 17 18 23 5 18 81 3 96 1 117 16 48 2 84 144 65 71 112 47 83 15 39 72 Largest 7 | 2 2 4 . 4 7 4 4 2 1 1 1 1 1 1 2 1 1 1 1 1 4 3 1 4 4 4 5 3 4 4 Hottest 323 | 60 80 212 . 193 323 182 229 108 70 80 70 70 94 70 164 10 94 65 94 65 225 178 120 317 263 211 290 236 288 294 Shots Fired 3139 | 20 133 122 . 195 375 90 275 29 18 23 5 18 82 3 97 1 117 17 48 2 113 315 67 127 187 137 216 33 96 178 Gun 1098 | 20 133 118 . 193 343 54 106 24 . 1 . . 2 . 8 . 73 . 5 . . . . 18 . . . . . . Cannon 1802 | . . 4 . 2 27 35 164 3 18 15 3 15 68 3 57 . 22 10 32 2 88 302 52 104 171 125 208 27 86 159 Launcher 46 | . . . . . 5 1 2 . . 3 2 3 2 . . . . . . . 4 5 1 . . 7 4 . 4 3 Special 193 | . . . . . . . 3 2 . 4 . . 10 . 32 1 22 7 11 . 21 8 14 5 16 5 4 6 6 16 Kinetic 1906 | 10 52 33 . 98 197 66 204 14 18 15 3 15 68 3 57 . 22 10 32 2 68 273 . 49 106 125 171 18 57 120 Thermal 927 | 10 81 89 . 97 173 23 63 13 . 1 . . 2 . 8 . 73 . 5 . 4 29 35 73 34 . 37 9 29 39 Explosive 46 | . . . . . 5 1 2 . . 3 2 3 2 . . . . . . . 4 5 1 . . 7 4 . 4 3 Electromagnetic 71 | . . . . . . . 3 . . . . . . . . . . . . . 20 . 17 . 31 . . . . . Robot Hit Streak 30 | 8 17 11 . 20 11 8 27 9 5 10 1 4 17 1 12 12 30 4 9 1 12 24 9 14 7 23 17 23 14 16 Robot Miss Streak 10 | 1 4 6 . 7 5 5 10 8 1 3 3 4 2 2 3 . 3 3 6 1 2 7 8 3 7 4 4 3 4 3 Penetration Max 2 | . . . . . 1 . 1 . . . . . . . . . . . . . . . . . 2 . 1 . 1 . Secondary Targets 9 | . . 2 . 3 2 2 . . . . . . . . . . . . . . . . . . . . . . . . Max Gunslinging Chain 1 | . . 1 . 1 1 1 . . . . . . . . . . . . . . . . . . . . . . . . Capacitor 45 | . . . . . . . . . . . . . . . . . . . . . 12 . . 14 19 . . . . . Shots Hit Robots 2004 | 13 85 53 . 128 205 66 185 80 14 15 1 10 57 1 73 1 98 9 23 1 72 190 32 81 100 81 135 24 57 114 Core Hits 925 | 9 31 37 . 47 82 34 138 54 6 9 4 8 29 1 23 . 33 6 10 . 35 95 11 25 38 46 47 9 24 34 Critical Kills 30 | . . . . . 2 . . . . . . . . . . . . . . . . . . 11 11 . 2 . 3 1 Critical Parts Destroyed 18 | . . . . 1 1 1 . . . . . . . . . . . . . . . . . 5 7 . . . 3 . Critical Strikes 141 | . . 3 . 8 12 5 8 6 . 2 . . 3 . 4 . 5 . 1 . 4 9 1 16 23 6 7 1 9 8 Burn 20 | . . 3 . 7 9 . . . . . . . . . . . . . . . 1 . . . . . . . . . Meltdown 7 | . . . . . . . . . . . . . . . . . . . . . . . . 3 . . 2 . 1 1 Destroy 43 | . . . . 1 3 . . . . . . . . . . . . . . . . . . 13 18 . . . 8 . Blast 63 | . . . . . . 4 8 . . 2 . . 3 . 4 . 5 . 1 . 3 9 . . 5 6 5 1 . 7 Corrupt 1 | . . . . . . . . . . . . . . . . . . . . . . . 1 . . . . . . . Smash 1 | . . . . . . 1 . . . . . . . . . . . . . . . . . . . . . . . . Sever 6 | . . . . . . . . 6 . . . . . . . . . . . . . . . . . . . . . . Melee Attacks 109 | . . . . . . 7 23 77 . . . . 2 . . . . . . . . . . . . . . . . . Impact 7 | . . . . . . 7 . . . . . . . . . . . . . . . . . . . . . . . . Slashing 102 | . . . . . . . 23 77 . . . . 2 . . . . . . . . . . . . . . . . . Piercing . | . . . . . . . . . . . . . . . . . . . . . . . . . . . . . . . Sneak Attacks 13 | . . . . . . . 10 3 . . . . . . . . . . . . . . . . . . . . . . Combat Hostiles 1 | . . . . . . . 1 . . . . . . . . . . . . . . . . . . . . . . . Follow-up Attacks . | . . . . . . . . . . . . . . . . . . . . . . . . . . . . . . . Damage Inflicted 78761 | 137 843 1264 . 2290 4648 1821 6535 3012 1157 1359 272 1062 3985 86 3145 . 2973 497 1238 66 3940 9928 1183 2780 3285 5822 6835 838 2439 5321 Guns 12043 | 137 843 663 . 2232 3275 758 1380 473 . 10 . . . . 114 . 1814 . . . . . . 344 . . . . . . Cannons 51484 | . . 61 . 58 890 854 2975 . 1157 1092 74 780 3419 86 3031 . 1159 404 1238 66 2786 8077 1126 2436 3197 3155 5880 838 2037 4608 Explosions 11301 | . . 540 . . 483 127 1105 . . 257 198 282 420 . . . . 93 . . 1102 1839 57 . 87 2667 950 . 402 692 Melee 3842 | . . . . . . 82 1075 2539 . . . . 146 . . . . . . . . . . . . . . . . . Ramming 39 | . . . . . . . . . . . . . . . . . . . . . . 12 . . 1 . 5 . . 21 Kinetic 45744 | 45 265 101 . 1038 1827 1280 3568 180 1157 1092 74 780 3419 86 3031 . 1159 404 1238 66 2312 7190 . 747 2088 2980 4643 504 1217 3253 Thermal 16737 | 92 578 623 . 1252 1924 332 1515 293 . 10 . . . . 114 . 1814 68 . . 52 887 710 2033 445 249 1237 334 820 1355 Explosive 10316 | . . 540 . . 483 127 349 . . 257 198 282 420 . . . . 25 . . 1102 1839 57 . . 2593 950 . 402 692 Electromagnetic 1669 | . . . . . . . 28 . . . . . . . . . . . . . 474 . 416 . 751 . . . . . Impact 82 | . . . . . . 82 . . . . . . . . . . . . . . . . . . . . . . . . Slashing 3760 | . . . . . . . 1075 2539 . . . . 146 . . . . . . . . . . . . . . . . . Piercing . | . . . . . . . . . . . . . . . . . . . . . . . . . . . . . . . Entropic 414 | . . . . . 414 . . . . . . . . . . . . . . . . . . . . . . . . . Highest Corruption 47 | . . 9 9 9 1 1 . 6 6 9 9 . 15 15 15 5 19 20 39 . 20 45 47 19 40 42 10 . 2 3 Average Corruption 12 | . . 9 9 9 1 1 . 5 3 7 9 . 15 15 9 5 9 19 33 . 4 28 26 7 28 41 7 . 2 2 Corruption Purged . | . . . . . . . . . . . . . . . . . . . . . . . . . . . . . . . Corruption Blocked . | . . . . . . . . . . . . . . . . . . . . . . . . . . . . . . . Effects 630 | . . 28 . 12 12 6 . 34 12 24 5 . 26 14 8 4 44 32 19 . 36 95 46 28 67 44 7 . 6 21 Message Errors 134 | . . 4 . 3 5 1 . 5 5 11 1 . 12 3 3 1 10 4 2 . 10 14 9 6 10 10 3 . . 2 Matter Fused 133 | . . 7 . 3 1 1 . 7 3 3 1 . 4 5 1 2 10 10 1 . 10 19 10 6 9 10 2 . 2 6 Heat Flow Errors 69 | . . 1 . 2 1 1 . 5 . 5 1 . 1 2 2 . 6 6 1 . 3 9 4 5 6 4 . . 2 2 Energy Discharges 66 | . . 4 . . 1 . . 5 2 3 . . 4 1 1 . 5 4 3 . 3 11 4 3 9 2 . . . 1 Parts Rejected 10 | . . . . . . . . 1 . . . . . . . . . . . . . 4 2 1 . . . . . 2 Parts Fused 11 | . . . . . . . . 1 . . . . 1 . . . . 1 1 . . 2 2 . 2 . 1 . . . Data Loss (minor) 79 | . . 5 . 2 3 2 . 5 1 . 2 . 3 3 . 1 7 3 5 . 4 12 5 1 8 4 . . 1 2 Data Loss (major) 34 | . . 2 . . . . . 3 1 1 . . . . . . 2 2 1 . 3 4 2 2 5 1 . . . 5 Misfires 22 | . . 2 . 1 . . . 1 . . . . 1 . . . 1 1 2 . 1 1 4 3 2 1 . . . 1 Alerts 12 | . . 1 . . . . . 1 . 1 . . . . . . 2 . . . 1 2 2 . 1 . . . 1 . Misdirections 7 | . . . . . . . . . . . . . . . . . . 1 . . . 1 . . 3 2 . . . . Weapon Failures 53 | . . 2 . 1 1 1 . . . . . . . . 1 . 1 . 3 . 1 16 2 1 12 10 1 . . . Overload Shots . | . . . . . . . . . . . . . . . . . . . . . . . . . . . . . . . Overflow Damage 3824 | . . 2 . . 105 71 415 81 234 71 14 177 193 . 327 . 35 . 118 11 285 445 61 145 100 225 423 24 47 215 Projectiles 2720 | . . . . . 94 47 5 . 234 71 . 134 181 . 327 . 35 . 118 11 179 411 61 145 100 29 311 24 47 156 Explosions 744 | . . 2 . . 11 . 155 . . . 14 43 12 . . . . . . . 106 34 . . . 196 112 . . 59 Melee 360 | . . . . . . 24 255 81 . . . . . . . . . . . . . . . . . . . . . . Knockbacks 233 | . . . . . 4 5 20 . 3 2 . 5 12 . 9 . 2 2 2 . 7 67 . 1 18 11 30 2 8 23 Impact . | . . . . . . . . . . . . . . . . . . . . . . . . . . . . . . . Kinetic 209 | . . . . . 4 5 20 . 2 2 . 4 11 . 8 . 2 2 2 . 7 57 . 1 16 11 27 2 7 19 Secondary 24 | . . . . . . . . . 1 . . 1 1 . 1 . . . . . . 10 . . 2 . 3 . 1 4 Self-Inflicted Damage 1207 | . . 99 . 67 55 . 80 . . . . 28 . . . . . 198 . . 94 108 . . . 171 150 . 157 . Shots 19 | . . 1 . 1 1 . 2 . . . . 1 . . . . . 2 . . 1 3 . . . 3 2 . 2 . Rammed 4 | . . . . . . . . . . . . . . . . . . . . . . 3 . . . . . . . 1 Targets Rammed 6 | . . . . . . . . . . . . . . . . . . . . . . 3 . . 1 . 1 . . 1 Kicked 2 | . . . . . . . . . . . . . . . . . . . . . . . . . 1 . 1 . . . Crushed . | . . . . . . . . . . . . . . . . . . . . . . . . . . . . . . . Highest Temperature 506 | 40 149 328 . 387 339 32 435 213 27 243 149 95 231 220 270 . 252 243 242 . 376 378 480 348 409 506 174 . 364 66 Average Temperature 85 | 22 40 76 . 106 81 21 118 102 15 56 46 15 38 83 23 . 92 101 57 . 111 105 120 97 110 92 49 . 119 32 Received Heat Transfer 5419 | . 195 87 . 321 379 252 966 93 38 72 . 36 500 12 88 4 24 . 74 . 505 324 60 124 342 150 271 219 172 111 Effects 25 | . . . . . 1 . 4 . . . . . . . 1 . 1 . . . . 7 4 1 2 4 . . . . Shutdowns 5 | . . . . . . . 1 . . . . . . . . . . . . . . . 2 1 1 . . . . . Energy Bleed 5 | . . . . . 1 . . . . . . . . . 1 . . . . . . 1 . . 1 1 . . . . Interference 10 | . . . . . . . 3 . . . . . . . . . 1 . . . . 5 1 . . . . . . . Matter Decay 1 | . . . . . . . . . . . . . . . . . . . . . . 1 . . . . . . . . Damage (minor) 4 | . . . . . . . . . . . . . . . . . . . . . . . 1 . . 3 . . . . Siege Activations 3 | . . . . . . . . . . . . . . . . . 1 . . . . 1 . . . . . . . 1 Total Turns 35 | . . . . . . . . . . . . . . . . . 11 . . . . 15 . . . . . . . 9 Longest Duration 15 | . . . . . . . . . . . . . . . . . 11 . . . . 15 . . . . . . . 9 Martial Activations . | . . . . . . . . . . . . . . . . . . . . . . . . . . . . . . . Shielding Activations 2 | . . . . . . . . . . . . . . . . . . . . . . . . 1 1 . . . . . Total Turns 11 | . . . . . . . . . . . . . . . . . . . . . . . . 1 10 . . . . . Longest Duration 10 | . . . . . . . . . . . . . . . . . . . . . . . . 1 10 . . . . . Robots Disrupted 3 | . . . . . . . . . . . . . . . . . . . . . 3 . . . . . . . . . Combat Hostiles 2 | . . . . . . . . . . . . . . . . . . . . . 2 . . . . . . . . . Robots Corrupted 7 | . . . . . . . . . . . . . . . . . . . . . 2 . 2 . 2 . 1 . . . Combat Hostiles 7 | . . . . . . . . . . . . . . . . . . . . . 2 . 2 . 2 . 1 . . . Parts Fried 10 | . . . . . . . . . . . . . . . . . . . . . 1 . 3 . 6 . . . . . Impact Corruptions 3 | . . . . . . 1 . . . . . . 1 . . . . . . . . . . . . . 1 . . . Robots Melted 10 | . . 1 . . 1 . . . . . . . . . . . . . . . . . . 4 . . 2 . 1 1 Combat Hostiles 7 | . . . . . . . . . . . . . . . . . . . . . . . . 4 . . 2 . 1 . Parts Melted 44 | . 1 3 . 1 18 1 1 1 . . . . . . . . 1 . 3 . 2 1 . 10 . . . . 1 . Heat Transferred 24019 | 200 1325 1707 . 3256 4828 567 1930 675 . 25 . . . . 148 . 2368 50 . . 480 740 499 1665 383 104 999 296 684 1090 Parts Sabotaged 2 | . . . . . . . . . . . . . . . . . . . . . . 2 . . . . . . . . Parts Stolen . | . . . . . . . . . . . . . . . . . . . . . . . . . . . . . . . Parts Stripped . | . . . . . . . . . . . . . . . . . . . . . . . . . . . . . . . Power Chain Reactions 2 | . . . . . . . . . 1 . . . . . . . . . . . . . . . 1 . . . . . Alert | -11 -10 -9 -8 -8 -8 -8 -7 -7 -7 -7 -7 -6 -6 -6 -6 -5 -5 -5 -5 -4 -4 -4 -4 -3 -3 -3 -2 -1 -1 -1 ------- Run | Yrd Mat Mat Mat Gar Mat Gar Fac Gar Fac Low Low Fac Gar Fac Gar Fac Gar Fac Gar Fac Gar Fac Gar Res Tes Gar Res Acc Gar Acc Maximum Alert Level 5 | . . 1 . 3 4 3 3 4 3 . . . 3 2 4 3 4 3 5 3 5 4 4 3 3 4 4 3 3 3 Low Security (%) 16 | 100 100 24 100 14 . . 15 . . . . 100 10 . . . . . . . . . . 69 36 . . . . 13 Level 1 11 | . . 75 . 16 . . 38 . . . . . 15 53 3 . . . . . . . . 3 6 17 . 53 37 28 Level 2 23 | . . . . 38 19 20 25 1 94 . . . 28 46 21 34 42 78 15 . 7 . . 4 56 42 . 15 47 51 Level 3 34 | . . . . 30 74 79 21 54 5 . . . 45 . 42 65 51 21 31 100 59 85 51 22 . 2 22 30 15 6 Level 4 11 | . . . . . 5 . . 43 . . . . . . 33 . 6 . 11 . 20 14 48 . . 36 77 . . . Level 5 2 | . . . . . . . . . . . . . . . . . . . 40 . 13 . . . . . . . . . High Security . | . . . . . . . . . . . . . . . . . . . . . . . . . . . . . . . Max Security . | . . . . . . . . . . . . . . . . . . . . . . . . . . . . . . . Peak Influence 1839 | 15 42 392 156 980 1131 984 993 1372 720 . . 115 829 434 1314 815 1184 867 1839 1001 1726 1224 1418 830 701 1330 1477 885 754 798 Initial 965 | . . . 152 97 477 564 516 692 720 . . 37 14 434 294 689 534 621 578 965 659 905 854 797 87 387 747 885 275 452 Average 665 | 2 6 261 149 565 815 817 434 1079 536 . . 59 549 396 921 739 814 630 1313 956 1062 890 1116 296 359 808 1208 530 528 447 Influence Increases 21666 | 30 264 785 8 983 1302 490 1521 760 265 165 70 203 915 126 1320 264 930 520 1441 117 1477 1134 734 500 1150 1023 1182 89 519 1379 Destroy 0b10 Robot/C 10465 | . 160 480 . 520 740 340 800 380 140 140 60 120 465 60 630 105 315 90 495 45 645 675 330 285 570 570 480 60 240 525 Destroy 0b10 Robot/NC 698 | 30 30 25 . . 100 . 135 30 20 5 . 15 4 . . 20 32 12 . . 12 52 4 16 44 . 16 . . 96 Destroy Leader 1540 | . 56 96 . 20 218 30 114 40 62 20 10 30 30 24 48 12 24 32 48 8 48 82 40 70 68 64 96 8 24 118 Allied During Kill 2621 | . . . . 23 77 . 12 23 19 . . . 17 40 246 115 181 130 516 44 271 5 165 53 86 193 23 3 36 343 Successful Hack 158 | . 18 8 8 35 . . 24 7 2 . . . . . . . 11 . 12 . 12 . 13 8 . . . . . . Select Force Hacks 50 | . . . . . 50 . . . . . . . . . . . . . . . . . . . . . . . . . Disable Machine 798 | . . 60 . . 75 30 120 15 15 . . 15 . . . 12 12 84 12 12 12 24 12 24 132 24 48 . . 60 Anti-Garrison Action 2225 | . . . . 300 . 50 150 250 . . . . 263 . 302 . 227 . 228 . 265 . 114 . . 38 . . 38 . Destroy Structure 2472 | . . 41 . 55 42 25 121 15 7 . . 23 121 2 58 . 32 172 130 8 200 284 56 44 166 122 372 18 169 189 Lose Combat Pursuer 504 | . . 75 . 30 . 15 45 . . . . . 15 . 36 . 96 . . . 12 12 . . 84 12 12 . 12 48 Miscellaneous 135 | . . . . . . . . . . . . . . . . . . . . . . . . . . . 135 . . . Influence Decreases 20880 | 30 264 422 221 153 1413 375 1516 377 1186 562 64 243 106 535 426 815 509 877 429 1014 693 1640 536 1763 788 210 1035 1222 109 1347 Entered New Map 9593 | . . . 211 53 503 305 468 297 652 168 11 23 6 395 126 625 229 563 249 874 283 821 366 621 68 130 583 592 69 302 Time Decay 6205 | 30 247 412 10 . 510 . 658 . 464 374 53 180 . 140 . 110 . 294 . 110 . 559 . 562 470 . 392 160 . 470 Lost Part 1007 | . 17 10 . 60 60 70 140 80 10 . . 20 80 . . . . . . 10 70 220 30 30 40 20 40 . . . Lost Ally 2200 | . . . . 40 40 . 100 . 60 20 . 20 20 . 300 80 280 20 180 20 340 40 140 100 60 60 20 20 40 200 Purge Threat 1875 | . . . . . 300 . 150 . . . . . . . . . . . . . . . . 450 150 . . 450 . 375 Squads Dispatched 81 | . 3 1 . . 9 . 13 . 3 . . 1 . 1 . 1 . 5 . . . 10 . 7 7 . 9 2 . 9 Investigation 8 | . 1 1 . . 4 . . . . . . . . . . . . . . . . . . 1 1 . . . . . Extermination 22 | . . . . . . . 4 . 3 . . 1 . 1 . . . 2 . . . 2 . 4 2 . 2 . . 1 Reinforcement 27 | . 2 . . . 3 . 5 . . . . . . . . 1 . 2 . . . 3 . 1 3 . 3 1 . 3 Assault 16 | . . . . . 2 . 3 . . . . . . . . . . 1 . . . 5 . 1 1 . 2 . . 1 Garrison 8 | . . . . . . . 1 . . . . . . . . . . . . . . . . . . . 2 1 . 4 Intercept . | . . . . . . . . . . . . . . . . . . . . . . . . . . . . . . . Searches Triggered . | . . . . . . . . . . . . . . . . . . . . . . . . . . . . . . . Construction Impeded 6 | . . . . . . . 1 . . . . . . . . 1 . 1 . . . 2 . . . . 1 . . . Haulers Reinforced 4 | . . . . . . . . . . . . . . . . . . . . . . 1 . . . . 1 . . 2 Active Scanning Responses . | . . . . . . . . . . . . . . . . . . . . . . . . . . . . . . . Cargo Convoy Interrupts . | . . . . . . . . . . . . . . . . . . . . . . . . . . . . . . . Stealth | -11 -10 -9 -8 -8 -8 -8 -7 -7 -7 -7 -7 -6 -6 -6 -6 -5 -5 -5 -5 -4 -4 -4 -4 -3 -3 -3 -2 -1 -1 -1 --------- Run | Yrd Mat Mat Mat Gar Mat Gar Fac Gar Fac Low Low Fac Gar Fac Gar Fac Gar Fac Gar Fac Gar Fac Gar Res Tes Gar Res Acc Gar Acc Distress Signals 26 | . . 4 . 1 5 . 2 . . . . . . . . . 1 . . . 1 2 . 1 2 . 2 . . 5 Communications Jammed 238 | . . . . 19 39 18 4 . 6 . . . 20 . . . . . . . 24 . . . 26 . . . . 82 Distress Signals 234 | . . . . 19 37 18 2 . 6 . . . 20 . . . . . . . 24 . . . 26 . . . . 82 Times Spotted 810 | . 12 37 . 26 53 25 58 14 12 9 3 7 29 4 46 5 42 13 30 2 46 71 20 30 48 33 41 13 28 53 Peak Tracking Total 15 | . 2 6 . 6 7 6 5 2 3 4 3 4 4 1 4 3 9 3 5 2 13 8 6 4 8 15 6 8 7 8 Tactical Retreats 29 | . . 3 . 1 . 1 3 . . . . . 1 . 2 . 4 . . . 1 1 . . 6 1 1 . 1 3 Traps | -11 -10 -9 -8 -8 -8 -8 -7 -7 -7 -7 -7 -6 -6 -6 -6 -5 -5 -5 -5 -4 -4 -4 -4 -3 -3 -3 -2 -1 -1 -1 ------- Run | Yrd Mat Mat Mat Gar Mat Gar Fac Gar Fac Low Low Fac Gar Fac Gar Fac Gar Fac Gar Fac Gar Fac Gar Res Tes Gar Res Acc Gar Acc Traps Triggered 57 | . 1 1 . 9 1 1 1 2 1 . . . 5 . 14 . 6 1 2 . 2 1 1 2 . 4 . . . 2 Indirectly . | . . . . . . . . . . . . . . . . . . . . . . . . . . . . . . . Trap Hack Attempts . | . . . . . . . . . . . . . . . . . . . . . . . . . . . . . . . Triggered . | . . . . . . . . . . . . . . . . . . . . . . . . . . . . . . . Disarmed . | . . . . . . . . . . . . . . . . . . . . . . . . . . . . . . . Reprogrammed . | . . . . . . . . . . . . . . . . . . . . . . . . . . . . . . . Reused . | . . . . . . . . . . . . . . . . . . . . . . . . . . . . . . . Traps Extracted . | . . . . . . . . . . . . . . . . . . . . . . . . . . . . . . . Installed . | . . . . . . . . . . . . . . . . . . . . . . . . . . . . . . . Triggered . | . . . . . . . . . . . . . . . . . . . . . . . . . . . . . . . Machines | -11 -10 -9 -8 -8 -8 -8 -7 -7 -7 -7 -7 -6 -6 -6 -6 -5 -5 -5 -5 -4 -4 -4 -4 -3 -3 -3 -2 -1 -1 -1 ---------- Run | Yrd Mat Mat Mat Gar Mat Gar Fac Gar Fac Low Low Fac Gar Fac Gar Fac Gar Fac Gar Fac Gar Fac Gar Res Tes Gar Res Acc Gar Acc Machines Disabled 105 | . . 4 . 5 5 3 9 3 1 . . 1 7 . 5 1 6 7 7 1 6 2 4 2 13 3 4 . 1 5 Max in Single Turn 4 | . . 1 . 2 1 1 4 1 1 . . 1 2 . 2 . 1 2 2 . 1 1 1 1 1 1 2 . 1 1 Garrison Access 1 | . . . . . . . 1 . . . . . . . . . . . . . . . . . . . . . . . Garrison Relay 28 | . . . . 3 . 1 . 2 . . . . 2 . 3 . 4 . 4 . 4 . 3 . . 1 . . 1 . Phase Generator 7 | . . . . 1 . 1 . . . . . . 1 . 1 . 1 . 1 . . . . . . 1 . . . . Machines Repaired . | . . . . . . . . . . . . . . . . . . . . . . . . . . . . . . . Machines Dismantled . | . . . . . . . . . . . . . . . . . . . . . . . . . . . . . . . Machines Sabotaged 1 | . . . . . 1 . . . . . . . . . . . . . . . . . . . . . . . . . Overloaded Fab Kills . | . . . . . . . . . . . . . . . . . . . . . . . . . . . . . . . Hacking | -11 -10 -9 -8 -8 -8 -8 -7 -7 -7 -7 -7 -6 -6 -6 -6 -5 -5 -5 -5 -4 -4 -4 -4 -3 -3 -3 -2 -1 -1 -1 --------- Run | Yrd Mat Mat Mat Gar Mat Gar Fac Gar Fac Low Low Fac Gar Fac Gar Fac Gar Fac Gar Fac Gar Fac Gar Res Tes Gar Res Acc Gar Acc Machines Accessed 66 | . 6 7 3 4 7 . 4 3 5 1 . 1 1 1 1 2 1 1 2 1 2 2 2 2 4 1 1 1 . . Terminals 50 | . 6 7 2 4 6 . 2 3 4 . . . 1 . 1 1 1 . 2 . 2 1 2 1 2 1 1 . . . Fabricators . | . . . . . . . . . . . . . . . . . . . . . . . . . . . . . . . Repair Stations 2 | . . . . . . . . . . . . . . . . . . . . . . . . 1 1 . . . . . Recycling Units . | . . . . . . . . . . . . . . . . . . . . . . . . . . . . . . . Scanalyzers 2 | . . . . . . . 1 . 1 . . . . . . . . . . . . . . . . . . . . . Garrison Access 11 | . . . 1 . 1 . 1 . . . . 1 . 1 . 1 . 1 . 1 . 1 . . 1 . . 1 . . Total Hacks 110 | . 13 12 3 5 13 . 8 4 9 1 . 1 3 1 2 2 1 1 4 1 4 4 5 3 6 2 1 1 . . Successful 52 | . 6 6 3 3 6 . 3 1 3 1 . 1 1 1 . 1 1 1 1 1 1 2 2 2 4 . . 1 . . Failed 58 | . 7 6 . 2 7 . 5 3 6 . . . 2 . 2 1 . . 3 . 3 2 3 1 2 2 1 . . . Catastrophic 12 | . 1 . . . 1 . . 3 1 . . . . . . 1 . . 1 . 1 1 . . 1 1 . . . . Database Lockouts . | . . . . . . . . . . . . . . . . . . . . . . . . . . . . . . . Manual 75 | . 41 12 2 . 8 . . . 2 . . . . . . 1 . . . . . 2 . 2 4 . 1 . . . Terminals 92 | . 13 12 2 5 12 . 6 4 6 . . . 3 . 2 1 1 . 4 . 4 3 5 2 4 2 1 . . . Fabricators . | . . . . . . . . . . . . . . . . . . . . . . . . . . . . . . . Repair Stations 2 | . . . . . . . . . . . . . . . . . . . . . . . . 1 1 . . . . . Recycling Units . | . . . . . . . . . . . . . . . . . . . . . . . . . . . . . . . Scanalyzers 4 | . . . . . . . 1 . 3 . . . . . . . . . . . . . . . . . . . . . Garrison Access 11 | . . . 1 . 1 . 1 . . . . 1 . 1 . 1 . 1 . 1 . 1 . . 1 . . 1 . . Terminal Hacks 19 | . . . . 3 2 . 1 1 1 1 . . 1 . . . 1 . 1 . 1 1 2 1 2 . . . . . Record 3 | . . . . . . . . . 1 . . . . . . . . . . . . 1 . 1 . . . . . . Open Door 6 | . . . . 1 . . . 1 . 1 . . 1 . . . . . . . . . 1 . 1 . . . . . Emergency Access Points 2 | . . . . 1 . . . . . . . . . . . . 1 . . . . . . . . . . . . . Unreport Threat 4 | . . . . . 2 . 1 . . . . . . . . . . . . . . . . . 1 . . . . . Garrison Registry 1 | . . . . 1 . . . . . . . . . . . . . . . . . . . . . . . . . . Patrol Navigation 1 | . . . . . . . . . . . . . . . . . . . 1 . . . . . . . . . . . Security Stations 2 | . . . . . . . . . . . . . . . . . . . . . 1 . 1 . . . . . . . Fabricator Hacks . | . . . . . . . . . . . . . . . . . . . . . . . . . . . . . . . Repair Station Hacks . | . . . . . . . . . . . . . . . . . . . . . . . . . . . . . . . Recycling Unit Hacks . | . . . . . . . . . . . . . . . . . . . . . . . . . . . . . . . Scanalyzer 3 | . . . . . . . 1 . 2 . . . . . . . . . . . . . . . . . . . . . Retrieve Study 3 | . . . . . . . 1 . 2 . . . . . . . . . . . . . . . . . . . . . Garrison Access Hacks 11 | . . . 1 . 1 . 1 . . . . 1 . 1 . 1 . 1 . 1 . 1 . . 1 . . 1 . . Unlock Access 11 | . . . 1 . 1 . 1 . . . . 1 . 1 . 1 . 1 . 1 . 1 . . 1 . . 1 . . Unauthorized Hacks 19 | . 6 6 2 . 3 . . . . . . . . . . . . . . . . . . 1 1 . . . . . Terminals 17 | . 6 6 2 . 3 . . . . . . . . . . . . . . . . . . . . . . . . . Assimilate 1 | . . . . . 1 . . . . . . . . . . . . . . . . . . . . . . . . . Operators 2 | . 1 1 . . . . . . . . . . . . . . . . . . . . . . . . . . . . Skim 12 | . 5 5 2 . . . . . . . . . . . . . . . . . . . . . . . . . . . Sabotage 2 | . . . . . 2 . . . . . . . . . . . . . . . . . . . . . . . . . Fabricators . | . . . . . . . . . . . . . . . . . . . . . . . . . . . . . . . Repair Stations 2 | . . . . . . . . . . . . . . . . . . . . . . . . 1 1 . . . . . Patch 2 | . . . . . . . . . . . . . . . . . . . . . . . . 1 1 . . . . . Recycling Units . | . . . . . . . . . . . . . . . . . . . . . . . . . . . . . . . Scanalyzers . | . . . . . . . . . . . . . . . . . . . . . . . . . . . . . . . Garrison Access . | . . . . . . . . . . . . . . . . . . . . . . . . . . . . . . . Data Cores Recovered 7 | . 1 . . . 1 . 4 . . . . 1 . . . . . . . . . . . . . . . . . . Used 1 | . 1 . . . . . . . . . . . . . . . . . . . . . . . . . . . . . Hacking Detections 43 | . 4 5 . 3 3 . 4 3 4 . . 1 1 . 1 2 . 1 1 . 2 1 2 1 1 1 1 1 . . Full Trace Events 5 | . . . . . 2 . . 1 . . . . . . . . . . 1 . 1 . . . . . . . . . Feedback Events 1 | . . . . . 1 . . . . . . . . . . . . . . . . . . . . . . . . . Corruption 1 | . . . . . 1 . . . . . . . . . . . . . . . . . . . . . . . . . Feedback Blocked . | . . . . . . . . . . . . . . . . . . . . . . . . . . . . . . . Robot Schematics Acquired . | . . . . . . . . . . . . . . . . . . . . . . . . . . . . . . . Robots Built . | . . . . . . . . . . . . . . . . . . . . . . . . . . . . . . . Authchips . | . . . . . . . . . . . . . . . . . . . . . . . . . . . . . . . Time . | . . . . . . . . . . . . . . . . . . . . . . . . . . . . . . . Total Robot Build Rating . | . . . . . . . . . . . . . . . . . . . . . . . . . . . . . . . Part Schematics Acquired 3 | . . . . . . . . . . . . . . . . . . . . . . . . . 3 . . . . . Parts Built . | . . . . . . . . . . . . . . . . . . . . . . . . . . . . . . . Authchips . | . . . . . . . . . . . . . . . . . . . . . . . . . . . . . . . Time . | . . . . . . . . . . . . . . . . . . . . . . . . . . . . . . . Total Part Build Rating . | . . . . . . . . . . . . . . . . . . . . . . . . . . . . . . . Part Studies Acquired 3 | . . . . . . . 1 . 2 . . . . . . . . . . . . . . . . . . . . . Parts Repaired . | . . . . . . . . . . . . . . . . . . . . . . . . . . . . . . . Time . | . . . . . . . . . . . . . . . . . . . . . . . . . . . . . . . Parts Recycled . | . . . . . . . . . . . . . . . . . . . . . . . . . . . . . . . Recycled Matter . | . . . . . . . . . . . . . . . . . . . . . . . . . . . . . . . Retrieved Matter . | . . . . . . . . . . . . . . . . . . . . . . . . . . . . . . . Retrieved Components . | . . . . . . . . . . . . . . . . . . . . . . . . . . . . . . . Parts Scanalyzed . | . . . . . . . . . . . . . . . . . . . . . . . . . . . . . . . Part Schematics Acquired . | . . . . . . . . . . . . . . . . . . . . . . . . . . . . . . . Parts Damaged . | . . . . . . . . . . . . . . . . . . . . . . . . . . . . . . . Bothacking | -11 -10 -9 -8 -8 -8 -8 -7 -7 -7 -7 -7 -6 -6 -6 -6 -5 -5 -5 -5 -4 -4 -4 -4 -3 -3 -3 -2 -1 -1 -1 ------------ Run | Yrd Mat Mat Mat Gar Mat Gar Fac Gar Fac Low Low Fac Gar Fac Gar Fac Gar Fac Gar Fac Gar Fac Gar Res Tes Gar Res Acc Gar Acc Used RIF Installer 12 | . . . . 1 . 2 . 1 . . . . 1 . 1 . 1 . 1 . 1 . 1 . . 1 . . 1 . Coupler Efficiency 2 | . . . . . . . . 1 . . . . . . . . . . . . . . 1 . . . . . . . Hotswap 1 | . . . . . . . . . . . . . . . . . . . . . . . . . . . . . 1 . Code Merge 1 | . . . . . . . . . . . . . . . . . . . 1 . . . . . . . . . . . Command Fork 1 | . . . . . . . . . . . . . . . . . . . . . . . . . . 1 . . . . Threat Obfuscator 1 | . . . . . . . . . . . . . 1 . . . . . . . . . . . . . . . . . Signal Jammer 1 | . . . . . . . . . . . . . . . 1 . . . . . . . . . . . . . . . Zone Cloak 1 | . . . . . . . . . . . . . . . . . . . . . 1 . . . . . . . . . Patrol Navigation 1 | . . . . . . . . . . . . . . . . . 1 . . . . . . . . . . . . . Structural Interface 1 | . . . . . . 1 . . . . . . . . . . . . . . . . . . . . . . . . Program Shield 1 | . . . . . . 1 . . . . . . . . . . . . . . . . . . . . . . . . Autoassimilate 1 | . . . . 1 . . . . . . . . . . . . . . . . . . . . . . . . . . Robots Hacked 114 | . . . . . . . 4 1 . 3 . 1 5 . 16 1 18 6 6 1 9 8 6 1 10 . 2 1 5 10 Non-combat 8 | . . . . . . . . . . . . . . . . . . . . . . . . 1 3 . . 1 . 3 Combat 106 | . . . . . . . 4 1 . 3 . 1 5 . 16 1 18 6 6 1 9 8 6 . 7 . 2 . 5 7 Autoassimilated 25 | . . . . . . . 2 . . 1 . 1 2 . 3 . 3 1 4 1 2 . 3 . . . . . 1 1 Robot Hacks Applied 100 | . . . . . . . 2 1 . 2 . . 3 . 13 1 15 5 2 . 7 8 3 5 10 . 2 6 4 11 parse_system 7 | . . . . . . . . . . 1 . . . . . . . . . . 1 2 1 1 1 . . . . . no_distress 1 | . . . . . . . . . . . . . . . . . . . . . . . . . . . . 1 . . drop_inventory 4 | . . . . . . . . . . . . . . . . . . . . . . . . . 2 . . . . 2 check_alert 1 | . . . . . . . . . . . . . . . . . . . . . . . . . . . . 1 . . purge_threat 11 | . . . . . . . . . . . . . . . . . . . . . . . . 4 . . . 4 . 3 disable_scanner 3 | . . . . . . . . . . . . . . . . . . . . . . . . . 3 . . . . . amplify_resonance 13 | . . . . . . . . . . 1 . . . . 1 . 4 . . . 1 5 1 . . . . . . . overwrite_iff 8 | . . . . . . . 2 . . . . . . . 2 . . . . . 1 . 1 . 2 . . . . . formatsys_high 52 | . . . . . . . . 1 . . . . 3 . 10 1 11 5 2 . 4 1 . . 2 . 2 . 4 6 Relay Couplers Released 120 | . . . . 11 . 8 . 7 . . . . 10 . 13 . 15 . 18 . 16 . 12 . . 4 . . 3 3 Machine Destruction 114 | . . . . 11 . 5 . 7 . . . . 10 . 13 . 15 . 18 . 16 . 12 . . 4 . . 3 . Programmers 6 | . . . . . . 3 . . . . . . . . . . . . . . . . . . . . . . . 3 Attached 30 | . . . . . . . 2 3 . . . . 1 . 5 . 1 1 . . 7 . 2 2 1 1 . 1 2 1 Merged Code Value 13 | . . . . . . . . . . . . . . . . . . . 13 . . . . . . . . . . . Fabnet Peak Effective % . | . . . . . . . . . . . . . . . . . . . . . . . . . . . . . . . Robots Rewired 38 | . . . . 5 . . . . . . . . 2 . 15 . 2 . . . 7 . 2 . 1 3 . . 1 . Allies Hacked . | . . . . . . . . . . . . . . . . . . . . . . . . . . . . . . . Hacks Repelled . | . . . . . . . . . . . . . . . . . . . . . . . . . . . . . . . Allies | -11 -10 -9 -8 -8 -8 -8 -7 -7 -7 -7 -7 -6 -6 -6 -6 -5 -5 -5 -5 -4 -4 -4 -4 -3 -3 -3 -2 -1 -1 -1 -------- Run | Yrd Mat Mat Mat Gar Mat Gar Fac Gar Fac Low Low Fac Gar Fac Gar Fac Gar Fac Gar Fac Gar Fac Gar Res Tes Gar Res Acc Gar Acc Total Allies 148 | . . . . 7 . . 9 4 . 1 . 1 7 . 30 1 16 6 10 1 14 1 7 5 6 3 2 . 6 11 Largest Group 14 | . . . . 3 4 . 4 3 3 . . 1 5 5 14 13 9 12 13 9 9 2 4 3 2 4 2 1 4 7 Highest-Rated Group 637 | . . . . 116 73 . 48 162 162 . . 29 215 215 485 455 347 556 637 430 430 98 332 117 241 320 134 64 269 438 Highest-Rated Ally 160 | . . . . 116 25 . 29 80 80 . . 29 51 51 99 89 49 49 95 60 60 56 119 39 160 152 134 64 89 89 Total Orders 6 | . . . . . . . . . . . . . . . 2 . 2 . . . 2 . . . . . . . . . STAY 3 | . . . . . . . . . . . . . . . 1 . 1 . . . 1 . . . . . . . . . FOLLOW 3 | . . . . . . . . . . . . . . . 1 . 1 . . . 1 . . . . . . . . . Ally Attacks 1161 | . . . . 26 46 . 72 7 14 . . . 17 16 129 31 63 37 140 18 141 8 60 46 57 47 14 4 13 155 Total Damage 36833 | . . . . 878 552 . 788 319 200 . . . 328 511 2845 1019 1872 849 4161 445 4014 257 2232 457 4166 2751 575 126 617 6871 Kills 241 | . . . . 9 7 . 6 6 1 . . . 1 3 19 13 14 6 24 3 25 2 15 4 27 12 4 . 2 38 Allies Corrupted 9 | . . . . 1 . . . . 2 . . . . . . . 2 . . . 1 . 1 . 1 . . . 1 . Allies Melted 1 | . . . . . . . . . . . . . . . . . 1 . . . . . . . . . . . . . X0-1V1 Amusement Gains 296 | . 11 5 . 40 25 . 10 33 . . . 10 32 . 30 5 14 . . . . . . . 40 16 . 5 20 . Good Acts 186 | . . 10 . 11 9 5 15 11 6 6 2 2 5 1 16 2 6 3 5 1 7 9 4 12 7 6 12 2 5 6 Bad Acts 93 | . . 2 2 3 1 . 3 3 3 4 . 5 6 . 6 3 3 3 6 . 9 13 3 4 3 1 1 . 3 3 Intel | -11 -10 -9 -8 -8 -8 -8 -7 -7 -7 -7 -7 -6 -6 -6 -6 -5 -5 -5 -5 -4 -4 -4 -4 -3 -3 -3 -2 -1 -1 -1 ------- Run | Yrd Mat Mat Mat Gar Mat Gar Fac Gar Fac Low Low Fac Gar Fac Gar Fac Gar Fac Gar Fac Gar Fac Gar Res Tes Gar Res Acc Gar Acc Active Infowar (turns) 16004 | 72 1602 . . 1401 902 860 2172 1439 1179 747 . 371 1524 295 1584 . . . . . . 1 320 1533 1 . 1 . . . Sensors 655 | . . . . . . . 644 9 . . . . . . . . . . . . . . . . 1 . 1 . . . A.S.S. 1 | . . . . . . . . . . . . . . . . . . . . . . 1 . . . . . . . . IFF 1656 | . . . . . . . . . . . . 132 1081 . . . . . . . . . . 443 . . . . . . Seismic 2880 | 72 1602 . . 867 339 . . . . . . . . . . . . . . . . . . . . . . . . . Cloaking 1853 | . . . . . . . . . . . . . . . . . . . . . . . 320 1533 . . . . . . Jamming 12473 | . . . . 1400 902 860 2172 1439 1179 747 . 371 1524 295 1584 . . . . . . . . . . . . . . . Robot Analysis Total . | . . . . . . . . . . . . . . . . . . . . . . . . . . . . . . . Derelict Logs Recovered 3 | . . . . . . . . . . 3 . . . . . . . . . . . . . . . . . . . . Drone Launches . | . . . . . . . . . . . . . . . . . . . . . . . . . . . . . . . Drone Recoveries . | . . . . . . . . . . . . . . . . . . . . . . . . . . . . . . . Exploration | -11 -10 -9 -8 -8 -8 -8 -7 -7 -7 -7 -7 -6 -6 -6 -6 -5 -5 -5 -5 -4 -4 -4 -4 -3 -3 -3 -2 -1 -1 -1 ------------- Run | Yrd Mat Mat Mat Gar Mat Gar Fac Gar Fac Low Low Fac Gar Fac Gar Fac Gar Fac Gar Fac Gar Fac Gar Res Tes Gar Res Acc Gar Acc Turns Passed 31265 | 134 1664 1126 33 1403 1398 896 2470 1439 1179 876 153 371 1524 295 2050 229 1388 651 952 233 1688 1653 878 1668 1183 646 927 339 637 1182 Spaces Moved 15808 | 113 1092 626 22 693 668 451 1339 748 677 506 88 153 510 117 956 132 670 362 503 128 776 630 386 844 673 371 495 188 286 605 Core 2 | 2 . . . . . . . . . . . . . . . . . . . . . . . . . . . . . . Treads 7596 | . . . . . . . . 358 677 506 88 153 510 117 258 . 321 362 503 128 776 630 386 716 . . 28 188 286 605 Legs 1639 | . . . . . . . . . . . . . . . . . . . . . . . . 128 673 371 467 . . . Wheels 6571 | 111 1092 626 22 693 668 451 1339 390 . . . . . . 698 132 349 . . . . . . . . . . . . . Hover . | . . . . . . . . . . . . . . . . . . . . . . . . . . . . . . . Flight . | . . . . . . . . . . . . . . . . . . . . . . . . . . . . . . . Fastest Speed 50 | 50 80 130 150 140 140 145 125 113 160 160 160 160 240 240 150 150 150 160 160 160 152 152 165 115 115 115 111 156 156 156 Average Speed 155 | 79 120 140 150 155 150 155 138 139 160 160 160 202 240 240 174 150 158 160 160 160 176 181 190 160 116 123 120 156 156 156 Slowest Speed 305 | 80 140 150 150 210 160 160 160 160 160 160 160 240 240 240 240 150 240 160 160 160 240 305 250 265 184 186 232 156 156 156 Overloaded Moves . | . . . . . . . . . . . . . . . . . . . . . . . . . . . . . . . Propulsion Burnouts . | . . . . . . . . . . . . . . . . . . . . . . . . . . . . . . . Robots Hopped . | . . . . . . . . . . . . . . . . . . . . . . . . . . . . . . . Potential Cave-ins 8 | . . . . . . . . . . . . . . . . . . . . . 4 . . . . . 2 . 2 . Cave-ins Triggered . | . . . . . . . . . . . . . . . . . . . . . . . . . . . . . . . Exploration Rate (%) 44 | 4 98 60 5 81 89 44 33 78 29 72 22 5 76 8 93 5 87 16 93 5 82 13 53 23 77 51 15 7 37 20 Regions Visited 30 Branch Regions 3 Pre-discovered Areas 1 | . . . . . . . . . . 1 . . . . . . . . . . . . . . . . . . . . Known Exits Taken 13 | . . 1 1 . 1 . 1 . . . . 1 . 1 . 1 . 1 . 1 . 1 . 1 1 . . 1 . . Unknown Exits Taken 6 | 1 1 . . . . . . . 1 1 1 . . . . . . . . . . . . . . . 1 . . . Scrap Searched 5 | . . . . . . . . . . 4 1 . . . . . . . . . . . . . . . . . . . Spaces Dug 21 | . . . . . . 2 5 . . . . . 1 . . . . . . . . . 2 3 6 . 2 . . . Terrain Destroyed 1626 | . . 39 . 95 44 10 147 . 3 22 24 26 183 2 102 . 4 94 98 2 115 146 14 27 48 60 145 5 98 73 Melee 7 | . . . . . . 2 5 . . . . . . . . . . . . . . . . . . . . . . . Projectile 461 | . . . . . 11 4 40 . 3 1 2 3 20 2 17 . 4 3 9 2 22 101 13 27 48 33 50 5 16 25 AOE 1158 | . . 39 . 95 33 4 102 . . 21 22 23 163 . 85 . . 91 89 . 93 45 1 . . 27 95 . 82 48 Terrain Rammed . | . . . . . . . . . . . . . . . . . . . . . . . . . . . . . . . Walls Destroyed . | . . . . . . . . . . . . . . . . . . . . . . . . . . . . . . . Machines Disabled . | . . . . . . . . . . . . . . . . . . . . . . . . . . . . . . . Actions | -11 -10 -9 -8 -8 -8 -8 -7 -7 -7 -7 -7 -6 -6 -6 -6 -5 -5 -5 -5 -4 -4 -4 -4 -3 -3 -3 -2 -1 -1 -1 --------- Run | Yrd Mat Mat Mat Gar Mat Gar Fac Gar Fac Low Low Fac Gar Fac Gar Fac Gar Fac Gar Fac Gar Fac Gar Res Tes Gar Res Acc Gar Acc Total 20126 | 135 1316 796 22 925 870 556 1701 966 746 543 93 188 700 126 1246 163 891 422 598 154 1015 936 499 1081 942 466 682 212 409 727 Wait 1212 | . 110 63 . 48 76 38 145 15 38 6 . 9 57 4 51 26 46 33 42 20 35 84 20 66 61 15 17 4 59 24 Move 15783 | 112 1091 625 22 692 668 449 1339 747 676 505 87 153 509 117 955 131 669 362 501 127 775 630 385 843 673 369 494 188 285 604 Hop . | . . . . . . . . . . . . . . . . . . . . . . . . . . . . . . . Pick Up 293 | 6 27 20 . 19 6 4 26 31 4 3 . 2 15 . 15 . 11 3 4 2 19 6 8 19 15 3 14 2 4 5 Fast Attach 187 | 7 . 6 . 2 8 . 11 14 1 . . 3 7 1 2 1 2 1 . . 17 29 8 23 18 5 16 . 2 3 Attach 135 | . 2 2 . 8 6 5 14 8 . . . 2 10 . 2 1 . 1 . 2 15 10 6 8 10 4 10 2 1 6 Detach 78 | . . 1 . 1 3 . 6 3 . . . . 4 . 1 1 . 2 . . 14 5 5 9 4 3 14 . 1 1 Swap 153 | . 6 12 . 4 10 7 11 5 5 4 1 . 1 . 7 1 2 . . . 7 7 2 13 16 6 9 1 9 7 Drop 303 | . 13 26 . 14 11 . 22 33 4 2 . 1 9 1 16 1 10 4 3 1 22 16 . 29 31 3 24 . 3 4 Fire 1568 | 10 67 41 . 49 82 38 104 17 18 23 5 18 81 3 96 1 117 16 48 2 84 144 65 71 112 47 83 15 39 72 Melee 109 | . . . . . . 7 23 77 . . . . 2 . . . . . . . . . . . . . . . . . Ram 3 | . . . . . . . . . . . . . . . . . . . . . . 2 . . 1 . . . . . Kick 2 | . . . . . . . . . . . . . . . . . . . . . . . . . 1 . 1 . . . Crush 4 | . . . . . . . . . . . . . . . . . . . . . . 3 . . . . . . . 1 Escape Stasis 191 | . . . . 55 . 8 . 16 . . . . 4 . 64 . 32 . . . 2 . . . . 10 . . . . Rewire 105 | . . . . 33 . . . . . . . . 1 . 37 . 2 . . . 25 . . . . 1 . . 6 . Trap . | . . . . . . . . . . . . . . . . . . . . . . . . . . . . . . . Miscellaneous . | . . . . . . . . . . . . . . . . . . . . . . . . . . . . . . . Route ------- -11/Scrapyard -10/Materials (discovered 6 exits: *Mat x3 / [*Min x2] / [*Sub]) -9/Materials (discovered 2 exits: *Mat x2) -8/Materials -8/Garrison (discovered 4 exits: *Mat x4) -8/Materials (discovered 4 exits: *Fac / [*Sto x2] / Gar) -8/Garrison -7/Factory -7/Garrison (discovered 2 exits: *Fac x2) -7/Factory (discovered 2 exits: *Fac / *Low) -7/Lower Caves -7/Lower Caves (discovered 2 exits: *Fac / Zio) -6/Factory (discovered 3 exits: Fac / Low / Gar) -6/Garrison (discovered 3 exits: *Fac x3) -6/Factory -6/Garrison (discovered 3 exits: *Fac x3) -5/Factory -5/Garrison (discovered 3 exits: *Fac x3) -5/Factory (discovered 3 exits: *Fac / [*Upp] / Gar) -5/Garrison (discovered 3 exits: *Fac x3) -4/Factory -4/Garrison (discovered 3 exits: *Fac x3) -4/Factory (discovered 2 exits: Res / Gar) -4/Garrison -3/Research -3/Testing -3/Garrison -2/Research -1/Access -1/Garrison -1/Access To Epsilon Eridani History --------- Turn | Location | Event 6 | -11/Scrapyard | Discovered new exit (range 15) 135 | -11/Scrapyard | Entered Materials 136 | -10/Materials | Met a group of wandering Federalists 275 | -10/Materials | Discovered new exit (range 11) 313 | -10/Materials | Build established: Mutant 410 | -10/Materials | Discovered new exit (range 3) 709 | -10/Materials | Discovered new exit (range 13) 886 | -10/Materials | Discovered new exit (range 10) 978 | -10/Materials | Discovered new exit (range 13) 1493 | -10/Materials | Discovered new exit (range 5) 1729 | -10/Materials | Made a sacrifice at D.C.S.S. Altar Unit 1730 | -10/Materials | Core integrity fell below 50% 1799 | -10/Materials | Entered another Materials area 1799 | -9/Materials | Evolved 2 slots: Utility x1, Weapon x1 1847 | -9/Materials | X0-1V1 activates XOMVISION 1942 | -9/Materials | Ranged accuracy permanently improved by X0-1V1 (+5%) 2014 | -9/Materials | Energy generation permanently improved by X0-1V1 (+10) 2244 | -9/Materials | Build established: Gunner 2377 | -9/Materials | X0-1V1 foreshadows a heat wave 2378 | -9/Materials | X0-1V1 sent hostile G-34 Mercenary (x4) 2423 | -9/Materials | Destroyed 7 combat bots 2476 | -9/Materials | Discovered new exit (range 15) 2491 | -9/Materials | Weapon slot count permanently improved by X0-1V1 (+1) 2510 | -9/Materials | X0-1V1 sent you to a vault 2628 | -9/Materials | Ambient heat levels rising (+10) 2829 | -9/Materials | Ambient heat levels rising (+10) 2895 | -9/Materials | Identified exit to Materials 2895 | -9/Materials | X0-1V1 revealed exit location to -8/Materials 2925 | -9/Materials | Entered another Materials area 2925 | -8/Materials | Evolved 2 slots: Utility x2 2958 | -8/Materials | Identified exit to Garrison 2958 | -8/Materials | Entered Garrison 2988 | -8/Garrison | Triggered checkpoint 3012 | -8/Garrison | Garrison Relay disabled 3124 | -8/Garrison | Triggered checkpoint 3124 | -8/Garrison | X0-1V1 activates XOMVISION 3275 | -8/Garrison | Installed Relay Interface Framework 3308 | -8/Garrison | Garrison Relay disabled 3368 | -8/Garrison | Triggered checkpoint 3382 | -8/Garrison | X0-1V1 sent allied B-75 Beast (x1) 3416 | -8/Garrison | Discovered new exit (range 15) 3427 | -8/Garrison | Lost 3 parts (2u1w) 3461 | -8/Garrison | Identified exit to Materials 3461 | -8/Garrison | X0-1V1 revealed exit location to -8/Materials 3474 | -8/Garrison | Phase Generator disabled 3528 | -8/Garrison | Triggered checkpoint 3536 | -8/Garrison | X0-1V1 sent allied B-86 Titan (x1) 3544 | -8/Garrison | Sensors blinded by X0-1V1 3597 | -8/Garrison | Destroyed B-86 Titan 3682 | -8/Garrison | Discovered exit to Materials (range 9) 3702 | -8/Garrison | Triggered checkpoint 3724 | -8/Garrison | Discovered exit to Materials (range 14) 3724 | -8/Garrison | Discovered exit to Materials (range 56) 3724 | -8/Garrison | Discovered exit to Materials (range 59) 3724 | -8/Garrison | Discovered exit to Materials (range 67) 3758 | -8/Garrison | Garrison Relay disabled 3904 | -8/Garrison | Triggered checkpoint 3994 | -8/Garrison | Expanded RIF knowledge: Autoassimilate 4140 | -8/Garrison | Triggered checkpoint 4162 | -8/Garrison | Core integrity restored by X0-1V1 (+64) 4312 | -8/Garrison | Triggered checkpoint 4361 | -8/Garrison | Entered Materials 4361 | -8/Materials | Accompanied by 4 allies 4682 | -8/Materials | Lost 4 allies 4704 | -8/Materials | Weapon slot count temporarily expanded by X0-1V1 (+3) 4761 | -8/Materials | First assault squad dispatched 4892 | -8/Materials | Discovered new exit (range 4) 5130 | -8/Materials | Build established: Scavenger-Executioner 5171 | -8/Materials | Discovered new exit (range 15) 5357 | -8/Materials | Core integrity fell below 50% 5564 | -8/Materials | Build established: Tank 5649 | -8/Materials | Discovered new exit (range 13) 5759 | -8/Materials | Identified exit to Garrison 5759 | -8/Materials | Entered Garrison 5805 | -8/Garrison | Expanded RIF knowledge: Program Shield 5933 | -8/Garrison | Triggered checkpoint 5943 | -8/Garrison | Triggered checkpoint 5975 | -8/Garrison | Core integrity fell below 20% 6002 | -8/Garrison | Destroyed 7 combat bots 6005 | -8/Garrison | Lost 5 parts (1n4w) 6068 | -8/Garrison | X0-1V1 rescued you from certain death 6083 | -8/Garrison | Expanded RIF knowledge: Structural Interface 6107 | -8/Garrison | Garrison Relay disabled 6186 | -8/Garrison | Triggered checkpoint 6195 | -8/Garrison | X0-1V1 activates XOMVISION 6228 | -8/Garrison | X0-1V1 destroyed Phase Generator 6228 | -8/Garrison | Phase Generator disabled 6275 | -8/Garrison | Core integrity restored by X0-1V1 (+92) 6350 | -8/Garrison | Build established: Bothacker-Gunner 6495 | -8/Garrison | Discovered new exit (range 13) 6655 | -8/Garrison | Entered Factory 6655 | -7/Factory | Evolved 2 slots: Propulsion x1, Utility x1 7016 | -7/Factory | Build established: Bothacker-Tank 7047 | -7/Factory | X0-1V1 announced a LAN party 7176 | -7/Factory | X0-1V1 whisked you away to safety 7718 | -7/Factory | X0-1V1 sent you to a vault 7949 | -7/Factory | Build established: Bothacker-Gunner 7974 | -7/Factory | X0-1V1 turns hostiles against one another 8003 | -7/Factory | Lost 4 allies 8127 | -7/Factory | Core integrity fell below 50% 8160 | -7/Factory | Lost 4 parts (1n2u1w) 8161 | -7/Factory | Core integrity restored by X0-1V1 (+137) 8164 | -7/Factory | X0-1V1 activates XOMVISION 8463 | -7/Factory | Core integrity restored by X0-1V1 (+137) 8655 | -7/Factory | First assault squad dispatched 8867 | -7/Factory | Build established: Mutant 9125 | -7/Factory | Identified exit to Garrison 9125 | -7/Factory | Entered Garrison 9130 | -7/Garrison | X0-1V1 sent you into danger 9215 | -7/Garrison | Triggered checkpoint 9268 | -7/Garrison | Garrison Relay disabled 9309 | -7/Garrison | P-60 Hacker assimilated allied Guardian 4a 9397 | -7/Garrison | Triggered checkpoint 9451 | -7/Garrison | X0-1V1 mutated your Weapon slot to Propulsion slot 9473 | -7/Garrison | Build established: Bothacker-Mutant 9525 | -7/Garrison | Core integrity fell below 20% 9575 | -7/Garrison | Lost 3 parts (1n2w) 9641 | -7/Garrison | Plasma Rifle reconfigured into Item Mimic 9678 | -7/Garrison | Discovered new exit (range 13) 10120 | -7/Garrison | Found embedded Infiltrators 10147 | -7/Garrison | Discovered new exit (range 11) 10259 | -7/Garrison | Triggered checkpoint 10283 | -7/Garrison | Garrison Relay disabled 10302 | -7/Garrison | Rescued a captive Derelict 10359 | -7/Garrison | Triggered checkpoint 10387 | -7/Garrison | X0-1V1 activates XOMVISION 10436 | -7/Garrison | Expanded RIF knowledge: Coupler Efficiency 10453 | -7/Garrison | Triggered checkpoint 10497 | -7/Garrison | Build established: Bothacker-Tank 10564 | -7/Garrison | Entered Factory 10564 | -7/Factory | Accompanied by 3 allies 10718 | -7/Factory | Allied Derelicts emerged from ambush trap array 10999 | -7/Factory | X0-1V1 sent you to a vault 11002 | -7/Factory | Found Prototype Slashing Weapon 11002 | -7/Factory | Identified Scimitar of Distortion 11013 | -7/Factory | Found Prototype Processor 11117 | -7/Factory | X0-1V1 activates XOMVISION 11295 | -7/Factory | Build established: Bothacker-Mutant 11500 | -7/Factory | X0-1V1 activates XOMVISION 11557 | -7/Factory | Discovered new exit (range 14) 11592 | -7/Factory | Discovered new exit (range 9) 11743 | -7/Factory | Entered Lower Caves 11759 | -7/Lower Caves | Encountered a Warlord checkpoint 11763 | -7/Lower Caves | Learned Factory emergency access door positions 11807 | -7/Lower Caves | Attracted the attention of an 0b10 checkpoint 11847 | -7/Lower Caves | X0-1V1 activates XOMVISION 12037 | -7/Lower Caves | Core integrity restored by X0-1V1 (+132) 12040 | -7/Lower Caves | Spotted B-75 Beast 12044 | -7/Lower Caves | X0-1V1 upgraded hostiles (x1) 12050 | -7/Lower Caves | Spotted B-86 Titan 12061 | -7/Lower Caves | Weapon slot count temporarily expanded by X0-1V1 (+2) 12063 | -7/Lower Caves | Destroyed B-86 Titan 12211 | -7/Lower Caves | Build established: Bothacker-Tank 12490 | -7/Lower Caves | X0-1V1 mutated your Utility slot to Power slot 12554 | -7/Lower Caves | Learned location of 1 exit from Factory 12579 | -7/Lower Caves | Learned location of Extension (-4) 12608 | -7/Lower Caves | Discovered new exit (range 7) 12619 | -7/Lower Caves | Entered another Lower Caves area 12648 | -7/Lower Caves | Identified exit to Zion 12648 | -7/Lower Caves | X0-1V1 revealed exit location to -7/Zion 12738 | -7/Lower Caves | Discovered new exit (range 13) 12772 | -7/Lower Caves | Entered Factory 12772 | -6/Factory | Evolved 2 slots: Utility x2 12773 | -6/Factory | Identified exit to Factory 12791 | -6/Factory | Identified exit to Lower Caves 12791 | -6/Factory | X0-1V1 revealed exit location to -6/Lower Caves 12926 | -6/Factory | X0-1V1 mutated your Propulsion slot to Utility slot 13125 | -6/Factory | Build established: Tank 13143 | -6/Factory | Identified exit to Garrison 13143 | -6/Factory | Entered Garrison 13225 | -6/Garrison | X0-1V1 sent hostile Thug (x4) 13230 | -6/Garrison | Sensors blinded by X0-1V1 13308 | -6/Garrison | Phase Generator disabled 13413 | -6/Garrison | X0-1V1 mutated your Propulsion slot to Weapon slot 13537 | -6/Garrison | Triggered checkpoint 13725 | -6/Garrison | Discovered new exit (range 10) 13757 | -6/Garrison | Garrison Relay disabled 13832 | -6/Garrison | Identified Exp. Targeting Computer 13951 | -6/Garrison | Triggered checkpoint 13993 | -6/Garrison | Discovered new exit (range 11) 14050 | -6/Garrison | Build established: Bothacker-Mutant 14061 | -6/Garrison | System corruption reached 10% 14137 | -6/Garrison | Expanded RIF knowledge: Threat Obfuscation 14139 | -6/Garrison | Sensors blinded by X0-1V1 14203 | -6/Garrison | Triggered checkpoint 14265 | -6/Garrison | Lost 3 parts (1p1n1u) 14311 | -6/Garrison | Triggered checkpoint 14474 | -6/Garrison | Garrison Relay disabled 14562 | -6/Garrison | Discovered new exit (range 10) 14667 | -6/Garrison | Entered Factory 14667 | -6/Factory | Accompanied by 5 allies 14785 | -6/Factory | Build established: Botlord-Tank 14959 | -6/Factory | Identified exit to Garrison 14962 | -6/Factory | Entered Garrison 14962 | -6/Garrison | Accompanied by 5 allies 14987 | -6/Garrison | Phase Generator disabled 15043 | -6/Garrison | Lost 3 allies 15194 | -6/Garrison | Triggered checkpoint 15269 | -6/Garrison | Garrison Relay disabled 15344 | -6/Garrison | Triggered checkpoint 15390 | -6/Garrison | Triggered checkpoint 15422 | -6/Garrison | Triggered checkpoint 15483 | -6/Garrison | Destroyed 7 combat bots 15548 | -6/Garrison | Lost 3 allies 15762 | -6/Garrison | Triggered checkpoint 15764 | -6/Garrison | Triggered checkpoint 15782 | -6/Garrison | Triggered checkpoint 15811 | -6/Garrison | Lost 6 allies 15870 | -6/Garrison | Lost 4 allies 15922 | -6/Garrison | Triggered checkpoint 15970 | -6/Garrison | Discovered exit to Factory (range 14) 16028 | -6/Garrison | Build established: Botlord-Gunner 16073 | -6/Garrison | Rewired Striker 16074 | -6/Garrison | Rewired Striker 16263 | -6/Garrison | X0-1V1 rewrote Striker IFF filter 16265 | -6/Garrison | Spotted Striker 16270 | -6/Garrison | Destroyed Striker 16275 | -6/Garrison | Discovered exit to Factory (range 3) 16298 | -6/Garrison | Triggered checkpoint 16326 | -6/Garrison | Garrison Relay disabled 16328 | -6/Garrison | X0-1V1 revealed exit location to -5/Factory 16389 | -6/Garrison | Core integrity restored by X0-1V1 (+126) 16539 | -6/Garrison | Expanded RIF knowledge: Signal Jamming 16558 | -6/Garrison | Core integrity restored by X0-1V1 (+126) 16692 | -6/Garrison | X0-1V1 rewrote Slayer 5h IFF filter 16724 | -6/Garrison | Garrison Relay disabled 16756 | -6/Garrison | Triggered checkpoint 16808 | -6/Garrison | Triggered checkpoint 16836 | -6/Garrison | Triggered checkpoint 17012 | -6/Garrison | Entered Factory 17012 | -5/Factory | Accompanied by 13 allies 17012 | -5/Factory | Evolved 2 slots: Propulsion x2 17173 | -5/Factory | Lost 5 allies 17207 | -5/Factory | Identified exit to Garrison 17213 | -5/Factory | X0-1V1 vaporized surrounding terrain (radius 20) 17241 | -5/Factory | Entered Garrison 17241 | -5/Garrison | Accompanied by 8 allies 17344 | -5/Garrison | Garrison Relay disabled 17355 | -5/Garrison | Triggered checkpoint 17357 | -5/Garrison | X0-1V1 downgraded hostiles (x1) 17375 | -5/Garrison | Build established: Botlord-Tank 17389 | -5/Garrison | Lost 10 allies 17413 | -5/Garrison | Triggered checkpoint 17496 | -5/Garrison | Spotted B-75 Beast 17516 | -5/Garrison | Destroyed B-75 Beast 17553 | -5/Garrison | Triggered checkpoint 17592 | -5/Garrison | Garrison Relay disabled 17644 | -5/Garrison | Discovered new exit (range 15) 17718 | -5/Garrison | X0-1V1 rewrote Destroyer 6a IFF filter 17819 | -5/Garrison | Triggered checkpoint 17858 | -5/Garrison | Triggered checkpoint 17931 | -5/Garrison | Phase Generator disabled 18144 | -5/Garrison | Identified exit to Factory 18144 | -5/Garrison | X0-1V1 revealed exit location to -5/Factory 18159 | -5/Garrison | System corruption reached 10% 18215 | -5/Garrison | Triggered checkpoint 18232 | -5/Garrison | X0-1V1 activates XOMVISION 18251 | -5/Garrison | Discovered exit to Factory (range 9) 18289 | -5/Garrison | Expanded RIF knowledge: Patrol Navigation 18397 | -5/Garrison | Garrison Relay disabled 18533 | -5/Garrison | Triggered checkpoint 18562 | -5/Garrison | Garrison Relay disabled 18629 | -5/Garrison | Entered Factory 18629 | -5/Factory | Accompanied by 8 allies 18703 | -5/Factory | Discovered new exit (range 13) 18786 | -5/Factory | Discovered new exit (range 15) 18911 | -5/Factory | X0-1V1 redirected Transport squads to designated parking area 19229 | -5/Factory | First assault squad dispatched 19280 | -5/Factory | Identified exit to Garrison 19280 | -5/Factory | Entered Garrison 19280 | -5/Garrison | Accompanied by 12 allies 19304 | -5/Garrison | Triggered checkpoint 19324 | -5/Garrison | Garrison Relay disabled 19355 | -5/Garrison | X0-1V1 rewrote Slayer 6d IFF filter 19387 | -5/Garrison | System corruption reached 30% 19422 | -5/Garrison | Triggered checkpoint 19422 | -5/Garrison | Spotted B-75 Beast 19425 | -5/Garrison | P-70 Sage assimilated allied Sentinel 6e 19439 | -5/Garrison | Destroyed B-75 Beast 19458 | -5/Garrison | Triggered checkpoint 19513 | -5/Garrison | Expanded RIF knowledge: Code Merge 19531 | -5/Garrison | Discovered new exit (range 5) 19564 | -5/Garrison | Triggered checkpoint 19595 | -5/Garrison | Garrison Relay disabled 19614 | -5/Garrison | Rescued a captive Derelict 19615 | -5/Garrison | Rescued a captive Derelict 19732 | -5/Garrison | X0-1V1 vaporized surrounding terrain (radius 24) 19732 | -5/Garrison | Triggered checkpoint 19753 | -5/Garrison | Found embedded Infiltrators 19773 | -5/Garrison | Discovered new exit (range 16) 19775 | -5/Garrison | X0-1V1 rewrote 5A-OPP(x) IFF filter 19796 | -5/Garrison | Triggered checkpoint 19846 | -5/Garrison | Phase Generator disabled 20070 | -5/Garrison | Triggered checkpoint 20110 | -5/Garrison | Triggered checkpoint 20126 | -5/Garrison | Garrison Relay disabled 20189 | -5/Garrison | Discovered new exit (range 12) 20232 | -5/Garrison | Entered Factory 20232 | -4/Factory | Accompanied by 9 allies 20232 | -4/Factory | Evolved 2 slots: Utility x2 20314 | -4/Factory | Found Quantum Capacitor 20396 | -4/Factory | X0-1V1 activates XOMVISION 20439 | -4/Factory | Identified exit to Garrison 20465 | -4/Factory | Entered Garrison 20465 | -4/Garrison | Accompanied by 9 allies 20485 | -4/Garrison | Expanded RIF knowledge: Zone Cloak 20585 | -4/Garrison | Spotted B-86 Titan 20601 | -4/Garrison | Triggered checkpoint 20659 | -4/Garrison | X0-1V1 downgraded hostiles (x2) 20660 | -4/Garrison | Spotted B-75 Beast 20676 | -4/Garrison | Lost 9 allies 20683 | -4/Garrison | Destroyed B-75 Beast 20704 | -4/Garrison | Lost 4 parts (1p1u2w) 20734 | -4/Garrison | X0-1V1 vaporized surrounding terrain (radius 20) 20787 | -4/Garrison | Triggered checkpoint 20855 | -4/Garrison | Lost 3 allies 20868 | -4/Garrison | Garrison Relay disabled 21046 | -4/Garrison | Discovered new exit (range 13) 21119 | -4/Garrison | Triggered checkpoint 21155 | -4/Garrison | Garrison Relay disabled 21357 | -4/Garrison | Found Fusion Bomb Launcher 21427 | -4/Garrison | Discovered new exit (range 11) 21468 | -4/Garrison | Learned Factory security intel 21533 | -4/Garrison | Triggered checkpoint 21587 | -4/Garrison | Garrison Relay disabled 21727 | -4/Garrison | Triggered checkpoint 21864 | -4/Garrison | Discovered new exit (range 10) 21912 | -4/Garrison | Destroyed 9 combat bots 21917 | -4/Garrison | Lost 3 allies 21930 | -4/Garrison | Triggered checkpoint 21988 | -4/Garrison | Garrison Relay disabled 22022 | -4/Garrison | Found Relay Coupler [Proto] 22025 | -4/Garrison | Found Relay Coupler [Proto] 22126 | -4/Garrison | System corruption reached 10% 22153 | -4/Garrison | Entered Factory 22153 | -4/Factory | Accompanied by 2 allies 22334 | -4/Factory | X0-1V1 sent you to a vault 22361 | -4/Factory | Found Prototype Device 22361 | -4/Factory | Identified Active Sensor Suite 22377 | -4/Factory | Found Prototype Hackware 22377 | -4/Factory | Identified System Mapper 22399 | -4/Factory | Found Prototype Special Weapon 22399 | -4/Factory | Identified Exp. Remote Datajack 22431 | -4/Factory | Found Prototype Slashing Weapon 22431 | -4/Factory | Identified Hvy. Scimitar of Distortion 22653 | -4/Factory | First assault squad dispatched 22912 | -4/Factory | X0-1V1 sent hostile Thug (x5) 23050 | -4/Factory | System corruption reached 30% 23482 | -4/Factory | Lost 6 parts (1p1n3u1w) 23517 | -4/Factory | X0-1V1 sent you into danger 23555 | -4/Factory | X0-1V1 upgraded hostiles (x2) 23578 | -4/Factory | Identified exit to Research 23578 | -4/Factory | X0-1V1 revealed exit location to -3/Research 23678 | -4/Factory | Core integrity fell below 50% 23722 | -4/Factory | Lost 4 parts (1n1u2w) 23806 | -4/Factory | Identified exit to Garrison 23806 | -4/Factory | Entered Garrison 23875 | -4/Garrison | Garrison Relay disabled 23900 | -4/Garrison | Build established: Botlord-Mutant 24069 | -4/Garrison | Rewired Executioner 24076 | -4/Garrison | Rewired Executioner 24158 | -4/Garrison | Triggered checkpoint 24188 | -4/Garrison | Rescued a captive Derelict 24215 | -4/Garrison | Build established: Botlord-Tank 24225 | -4/Garrison | Spotted B-86 Titan 24232 | -4/Garrison | Triggered checkpoint 24243 | -4/Garrison | Allies destroyed B-86 Titan 24248 | -4/Garrison | Triggered checkpoint 24266 | -4/Garrison | Triggered checkpoint 24278 | -4/Garrison | Triggered checkpoint 24302 | -4/Garrison | Forcibly received Sfc. Transmogifier from X0-1V1 24318 | -4/Garrison | Lost 4 allies 24442 | -4/Garrison | Expanded RIF knowledge: Coupler Efficiency 24466 | -4/Garrison | Core integrity restored by X0-1V1 (+200) 24470 | -4/Garrison | Triggered checkpoint 24471 | -4/Garrison | X0-1V1 upgraded hostiles (x1) 24572 | -4/Garrison | Learned Research security intel 24585 | -4/Garrison | Garrison Relay disabled 24604 | -4/Garrison | Garrison Relay disabled 24672 | -4/Garrison | Discovered exit to Research (range 8) 24684 | -4/Garrison | Entered Research 24684 | -3/Research | Evolved 2 slots: Propulsion x2 24793 | -3/Research | X0-1V1 sent allied Wasp (x2) 24851 | -3/Research | Found Prototype Launcher 24851 | -3/Research | Identified Adv. Micro-nuke Launcher 24856 | -3/Research | Found Adv. Micro-nuke Launcher 24858 | -3/Research | Found Adv. Micro-nuke Launcher 24920 | -3/Research | X0-1V1 activates XOMVISION 24934 | -3/Research | First assault squad dispatched 25099 | -3/Research | X0-1V1 redirected Transport squads to designated parking area 25288 | -3/Research | X0-1V1 vaporized surrounding terrain (radius 17) 25431 | -3/Research | Found Prototype Device 25431 | -3/Research | Identified Exp. Thermal Defense Suite 25552 | -3/Research | X0-1V1 mutated your Utility slot to Propulsion slot 25745 | -3/Research | X0-1V1 activates XOMVISION 26005 | -3/Research | System corruption reached 10% 26009 | -3/Research | X0-1V1 sent allied Fireman (x3) 26174 | -3/Research | Spotted B-86 Titan 26183 | -3/Research | Destroyed B-86 Titan 26200 | -3/Research | Found Unknown Device 26200 | -3/Research | Identified Quantum Capacitor 26224 | -3/Research | X0-1V1 sent you to a vault 26231 | -3/Research | Found Prototype Processor 26231 | -3/Research | Identified Exp. Target Analyzer 26346 | -3/Research | Discovered new exit (range 2) 26350 | -3/Research | Identified exit to Testing 26352 | -3/Research | Entered Testing 26407 | -3/Testing | Found Prototype Protection 26407 | -3/Testing | Identified Hvy. Regenerative Plating 26415 | -3/Testing | Found Prototype Protection 26494 | -3/Testing | Build established: Botlord-Gunner 26744 | -3/Testing | Found Prototype Device 26753 | -3/Testing | Identified AEGIS Remote Shield 26761 | -3/Testing | Spotted PL-0JBBN79XDC 26770 | -3/Testing | Destroyed PL-0JBBN79XDC 26799 | -3/Testing | Rewired PX-Q0YRJICBV6 26819 | -3/Testing | X0-1V1 sent you to a vault 26823 | -3/Testing | Found Prototype Device 26823 | -3/Testing | Identified Thermal Barrier 26826 | -3/Testing | Found Prototype Device 26826 | -3/Testing | Identified Exp. Phase Shifter 26849 | -3/Testing | Found Prototype Energy Cannon 26849 | -3/Testing | Identified YOLO Cannon 26912 | -3/Testing | Identified SHELL Armor 27126 | -3/Testing | System corruption reached 30% 27199 | -3/Testing | Spotted Striker 27200 | -3/Testing | Spotted Striker 27203 | -3/Testing | Build established: Botlord-Tank 27206 | -3/Testing | Spotted Alpha 7 27213 | -3/Testing | Assimilated Alpha 7 with formatsys_high 27227 | -3/Testing | X0-1V1 turns hostiles against one another 27247 | -3/Testing | Lost 3 allies 27257 | -3/Testing | Lost 3 parts (1n1u1w) 27352 | -3/Testing | First assault squad dispatched 27528 | -3/Testing | X0-1V1 activates XOMVISION 27535 | -3/Testing | Identified exit to Garrison 27535 | -3/Testing | Entered Garrison 27535 | -3/Garrison | Accompanied by 1 ally 27568 | -3/Garrison | Spotted B-86 Titan 27647 | -3/Garrison | Triggered checkpoint 27731 | -3/Garrison | Expanded RIF knowledge: Command Fork 27767 | -3/Garrison | Garrison Relay disabled 27788 | -3/Garrison | Weapon slot count temporarily expanded by X0-1V1 (+3) 27815 | -3/Garrison | Destroyed B-86 Titan 27878 | -3/Garrison | X0-1V1 destroyed Phase Generator 27878 | -3/Garrison | Phase Generator disabled 27912 | -3/Garrison | X0-1V1 activates XOMVISION 27921 | -3/Garrison | Triggered checkpoint 27921 | -3/Garrison | Spotted B-86 Titan 27924 | -3/Garrison | Triggered checkpoint 27928 | -3/Garrison | Destroyed B-86 Titan 27928 | -3/Garrison | Triggered checkpoint 27932 | -3/Garrison | Triggered checkpoint 28000 | -3/Garrison | Destroyed 18 combat bots 28054 | -3/Garrison | Discovered new exit (range 13) 28181 | -3/Garrison | Entered Research 28181 | -2/Research | Accompanied by 1 ally 28181 | -2/Research | Evolved 1 slot: Propulsion x1 28299 | -2/Research | X0-1V1 added 0b10 threat records associated with you (considerable) 28350 | -2/Research | Spotted B-90 Cyclops 28359 | -2/Research | Weapon slot count temporarily expanded by X0-1V1 (+3) 28373 | -2/Research | Destroyed B-90 Cyclops 28431 | -2/Research | First assault squad dispatched 28697 | -2/Research | X0-1V1 sent you to a vault 28712 | -2/Research | Found Alien Artifact 28712 | -2/Research | Identified Terrabomb 28712 | -2/Research | Used Terrabomb 28712 | -2/Research | Discovered new exit (range 11) 28739 | -2/Research | Spotted B-90 Cyclops 28799 | -2/Research | Build established: Botlord-Executioner 28949 | -2/Research | Garrison activated, responded to threat 29063 | -2/Research | Found Prototype Processor 29067 | -2/Research | Found Prototype Reactor 29104 | -2/Research | System corruption reached 10% 29108 | -2/Research | Entered Access 29108 | -1/Access | Accompanied by 1 ally 29108 | -1/Access | Evolved 2 slots: Utility x2 29112 | -1/Access | Build established: Botlord-Tank 29387 | -1/Access | Spotted B-99 Colossus 29412 | -1/Access | Garrison activated, responded to threat 29447 | -1/Access | Identified exit to Garrison 29447 | -1/Access | Entered Garrison 29448 | -1/Garrison | X0-1V1 activates XOMVISION 29661 | -1/Garrison | Expanded RIF knowledge: Hotswap 29696 | -1/Garrison | X0-1V1 downgraded hostiles (x2) 29744 | -1/Garrison | Destroyed 9 combat bots 29767 | -1/Garrison | Discovered new exit (range 10) 29969 | -1/Garrison | Triggered checkpoint 30012 | -1/Garrison | Garrison Relay disabled 30084 | -1/Garrison | Entered Access 30084 | -1/Access | Accompanied by 4 allies 30401 | -1/Access | Identified Vortex Chain Reactor 30430 | -1/Access | Garrison activated, responded to threat 30521 | -1/Access | Spotted B-99 Colossus 30589 | -1/Access | X0-1V1 enhanced Transport squad support 30620 | -1/Access | Garrison activated, responded to threat 30653 | -1/Access | Found Prototype Processor 30659 | -1/Access | Found Prototype Processor 30688 | -1/Access | Lost 4 allies 30984 | -1/Access | X0-1V1 sent you to a vault 31084 | -1/Access | First assault squad dispatched 31125 | -1/Access | Spotted B-99 Colossus 31140 | -1/Access | Spotted B-99 Colossus 31159 | -1/Access | Allies destroyed B-99 Colossus 31164 | -1/Access | Destroyed B-99 Colossus 31203 | -1/Access | X0-1V1 downgraded hostiles (x4) 31255 | -1/Access | Discovered new exit (range 5) 31266 | *** | Escaped! Last Messages --------------- 31212_ Slug penetrates Wall. 31212_ Penetrated by Slug. 31212_ Slug penetrates Wall. 31214_ H-77 Assassin destroyed. 31214_ K-01 Serf collects debris. 31215_ Acquired 24 matter. 31217_ K-01 Serf collects debris. 31226_ U-05 Engineer builds a Wall. 31227_ K-01 Serf collects debris. 31228_ U-05 Engineer builds a Wall. 31231_ K-01 Serf collects debris. 31231_ Sealed Heavy Doors breached. 31234_ K-01 Serf collects debris. 31241_ Slug penetrates Sealed Heavy Doors. 31244_ K-01 Serf collects debris. 31249_ R-10 Processor collects Hvy. Machine Gun. 31250_ K-01 Serf collects debris. 31255_ EXIT=FOUND [Achievement: Victory By Combat] [Achievement: Chaotic Teddy Bear] Map ----- +----------------------------------------------------+ | ?????????????????????????????????????????????????? | | ?????????????????????????????????????????????????? | | ?????????????????????????????????????????????????? | | ?????????????????????????????????????????????????? | | ?????????????????????????????????????????????????? | | ?????????????????????????????????????????????????? | | #????????????????????????????????????????????????? | | #????????????????????????????????????????????????? | | #????????????????????????????????????????????????? | | #????????????????????????????????????????????????? | | #????????????????????????????????????????????????? | | #????????????????????????????????????????????????? | | #????????????????????????????????????????????????? | | #????????????????????????????????????????????????? | | #????????????????????????????????????????????????? | | #????????????????????????????????????????????????? | | #????????????????????????????????????????????????? | | #????????????????????????????????????????????????? | | #?? T" ??????????????????????????????????????????? | | +??"""???????????????????????????????????????????? | | #??""????#########??###??????????????????????????? | | #? ????# "??" ??????????????????????????? | | #? ????## % "??" ??????????????????????????? | | ########## %% "??" """"""?????????????????????? | | [=^=|[**== % "??" " "?????????????????????? | | =%^[=!%!%!! "??" " "@ "?????????????????????? | | %=%! =*=|!*| "??" " "" "?????????????????????? | | !*^*!!% %!|%%! """" " gh"?????????????????????? | | ###=##=###==| """?????????????????????? | | [!###%###! [ """" "??????????????????? | | [??#!#?# % "??" "??????????????????? | | ???#*#?#########??##########"??????????????????? | | ???#%#?????????????????????????????????????????? | | ??#*#?????????????????????????????????????????? | | ???|#?????????????????????????????????????????? | | #?? ??????????????????????????????????????????? | | #?? ??????????????????????????????????????????? | | ####?? ??????????????????????????????????????????? | | ?????? ??????????????????????????????????????????? | | ?????? ??????????????????????????????????????????? | | ?????? ??????????????????????????????????????????? | | ?????????????????????????????????????????????????? | | ?????????????????????????????????????????????????? | | ?????????????????????????????????????????????????? | | ?????????????????????????????????????????????????? | | ?????????????????????????????????????????????????? | | ?????????????????????????????????????????????????? | | ?????????????????????????????????????????????????? | | ?????????????????????????????????????????????????? | | ?????????????????????????????????????????????????? | +----------------------------------------------------+ Best States ------------- Heat Dissipation 184 Coolant Potential 80 Energy Generation 65 Energy Capacity 2200 Matter Stores 1000 Matter Capacity 1000 Sight Range 21 Robot Scan Range 15 Terrain Scan Density 10 Jamming Range 12 Cloak Strength 4 Base Temperature (-) 200 Armor Coverage 900 Resistance: TH 30 Weapon Cycling 25 Phase Shifting 15 Evasion (%) 70 Core Analysis 6 Recoil Reduction 8 Matter Filtering 30 Offensive Hacking 20 Relay Coupler Types 5 Relay Coupler Value 369 Item Schematics ----------------- Adv. Matter Compressor | -3/Testing | Archive Centrium Greatsword | -3/Testing | Archive Hvy. Gatling Laser | -3/Testing | Archive Robot Schematics ------------------ None Fabricated ------------ Nothing Repaired ---------- Nothing Studied --------- Arm. Huge Wheel | -7/Factory | Hacked Flak Gun | -7/Factory | Hacked Gatling Laser | -7/Factory | Hacked Alien Tech Used ----------------- Terrabomb Achievements -------------- Chaos Is Inevitable Chaotic Teddy Bear Metal Spider Powerful Protocols Victory By Combat Challenges ------------ None Game ------ Seed MetaSuperdenseTendrils Manual? 0 Play Time 06:15:15 Cumulative 241.5 hours Start 2026.06.23 @ 04:12:19 End 2026.06.23 @ 21:02:39 Sessions 7 Manual Loads 0 Difficulty Rogue Special Mode None Game No. 116 Rogue 116 Adventurer 0 Explorer 0 Win Type 0 Total 13 Types 10/1/1/0/0/0/0/0/0/1 Lore% 75 Gallery% 71 Achievement% 69 Wizard Run 0 Options --------- Layout 0 ASCII 0 Keyboard 1 Movement Arrows Keybinds 0 Fullscreen 2 Font 18/SmallcapsGlow Map View 76x50 Zoom Use 0% Tactical HUD 1 Map Filters NONE Filters NONE Steam 1 RUN: db1abe0c-b631-402b-a239-85a3e9bb921c